Cogmind - Beta 17 @@@ ROGUE MODE // 2026.08.17 @ 23:07:15 Player: Petvaria Result: Destroyed by G-73 Enforcer with Phase Gun Performance ------------- Evolutions (9) 4500 Regions Visited (31) 6200 Robots Destroyed (645) 3225 Value Destroyed (37246) 37246 Prototype IDs (81) 1620 Alien Tech Used (11) 2200 Bonus (64245) 64245 TOTAL SCORE: 119236 Bonus ------- Triggered High Security 1000 High Alert Combat Kills 13759 Follower Combat Kills 3840 Prayed to X0-1V1 5000 Major X0-1V1 Interference 12050 Entered Garrisons 400 Entered DSFs 500 Met Imprinter 300 Acquired ECA 300 Met Zhirov 300 Met Warlord at Base 500 MAIN.C Attacked Warlord 500 Warlord Defense Kills 5206 Met R17 at Cetus 500 Used Core Reset Matrix 3000 Met R17 at Research 2000 Met Warlord at Research 2000 Scanned by Researcher 1000 Pursued by Intercept 1000 Met Sigix 2000 Met MAIN.C 5000 Destroyed MAIN.C Shell 5000 Friendly Fire -910 Cogmind --------- Core Integrity 0/1850 Matter 232/300 Energy 100/100 System Corruption 0% +Membrane Temperature Cool (0) +ITN Movement Core (50) Location -1/Command Parts ------- > --- POWER (3) -------- (None) > --- PROPULSION (7) --- (None) > --- UTILITY (9) ------ (None) > --- WEAPON (7) ------- (None) > --- INVENTORY (5) ---- Improved Potential Cannon Advanced KE Penetrator Helical Railgun Enhanced Gamma Bomb Array Peak State ------------ > --- POWER ------------ Quantum Reactor Improved Quantum Reactor Improved Quantum Reactor > --- PROPULSION ------- Advanced Heavy Siege Treads High-density Centrium Heavy Treads High-density Centrium Heavy Treads Experimental Biometal Medium Treads > --- UTILITY ---------- Huge Storage Unit Experimental Targeting Computer Experimental Core Analyzer Centrium Heavy Armor Plating Graphene Brace Microwarp Drive > --- WEAPON ----------- Heavy Quantum Rifle BFG-9k Vortex Edition > --- INVENTORY -------- Particle Reactor Experimental Cooling System Experimental Matter Compressor Experimental Terrain Scanner Experimental Terrain Scan Processor High-powered Tractor Beam High-powered Transdimensional Reconstructor Compact HERF Cannon Compact HERF Cannon Improved Potential Cannon Advanced KE Penetrator Helical Railgun Helical Railgun Multirail Enhanced Gamma Bomb Array [Rating: 287] Favorites ----------- Power Improved Quantum Reactor Engine Light Angular Momentum Engine Power Core Reinforced Fission Core Reactor Improved Quantum Reactor Propulsion Light Treads Treads Light Treads Leg Shield Leg Utility Huge Storage Unit Device X0-1V1's Piety Tracker Storage Huge Storage Unit Processor Experimental Core Analyzer Hackware System Mapper Protection Layered Heavy Armor Plating Artifact Microwarp Drive Weapon Helical Railgun Energy Gun Phase Gun Energy Cannon Advanced Beam Cannon Ballistic Gun Helical Railgun Ballistic Cannon Heavy Assault Cannon Launcher Gamma Bomb Array Special Weapon Mining Laser Impact Weapon Core Stripper Slashing Weapon Vibroblade Piercing Weapon Makeshift Spear Build | -11 -10 -9 -9 -9 -8 -7 -7 -7 -7 -6 -6 -6 -6 -6 -6 -5 -5 -5 -5 -4 -4 -4 -4 -3 -3 -3 -2 -2 -2 -1 -1 ------- Run | Yrd Mat Mat Sto Gar Mat Fac Low Low Zio Pro Fac Ext Cet Arc Hub Fac Gar Fac DSF Fac Upp Upp War Pro Res Tes Res Qua Sec Acc Com Slots Evolved 18 | . . 2 . . 2 2 . . . . 2 . . . . 2 . . . 2 . . . . 2 . 2 . . 2 . Power 1 | . . . . . . 1 . . . . . . . . . . . . . . . . . . . . . . . . . Propulsion 4 | . . 1 . . . . . . . . . . . . . 1 . . . 2 . . . . . . . . . . . Utility 7 | . . 1 . . 1 1 . . . . . . . . . 1 . . . . . . . . 1 . 1 . . 1 . Weapon 6 | . . . . . 1 . . . . . 2 . . . . . . . . . . . . . 1 . 1 . . 1 . Parts Attached 354 | 7 11 32 10 6 9 5 7 8 2 11 5 13 9 . 2 7 33 . 3 27 6 1 11 5 19 28 18 36 9 11 3 Power 50 | 1 1 4 1 . 1 1 . 1 1 4 . 3 . . 2 3 8 . . 2 1 1 1 1 . 2 4 2 1 3 1 Engine 22 | 1 1 4 1 . 1 1 . 1 . 3 . 2 . . 2 3 2 . . . . . . . . . . . . . . Core 7 | . . . . . . . . . 1 1 . 1 . . . . 2 . . . 1 1 . . . . . . . . . Reactor 21 | . . . . . . . . . . . . . . . . . 4 . . 2 . . 1 1 . 2 4 2 1 3 1 Propulsion 75 | 2 3 12 5 5 2 . . 4 . 4 1 5 2 . . 1 6 . 2 4 . . 1 1 4 2 3 6 . . . Treads 74 | 2 3 12 5 5 2 . . 4 . 4 1 5 2 . . 1 6 . 2 4 . . 1 1 3 2 3 6 . . . Leg 1 | . . . . . . . . . . . . . . . . . . . . . . . . . 1 . . . . . . Wheel . | . . . . . . . . . . . . . . . . . . . . . . . . . . . . . . . . Hover . | . . . . . . . . . . . . . . . . . . . . . . . . . . . . . . . . Flight . | . . . . . . . . . . . . . . . . . . . . . . . . . . . . . . . . Utility 129 | 2 3 9 2 . 2 3 4 . 1 1 1 4 2 . . 1 11 . 1 13 3 . 4 3 10 9 8 21 4 5 2 Device 74 | 1 1 2 1 . 2 1 2 . 1 . . 1 . . . . 8 . . 9 2 . 2 3 6 7 5 14 2 4 . Storage 7 | 1 2 1 . . . . . . . . . . . . . . . . . . . . 1 . . 1 . . 1 . . Processor 20 | . . 2 . . . 2 . . . . 1 . . . . 1 2 . 1 2 . . . . 2 1 2 2 . . 2 Hackware 6 | . . . . . . . . . . . . . . . . . . . . 1 . . . . 1 . . 3 . 1 . Protection 21 | . . 4 1 . . . 2 . . 1 . 3 2 . . . 1 . . 1 1 . 1 . 1 . 1 2 . . . Artifact 1 | . . . . . . . . . . . . . . . . . . . . . . . . . . . . . 1 . . Weapon 100 | 2 4 7 2 1 4 1 3 3 . 2 3 1 5 . . 2 8 . . 8 2 . 5 . 5 15 3 7 4 3 . Energy Gun 30 | 1 1 3 . . . . . 1 . 1 1 1 3 . . 2 4 . . 4 1 . 2 . 1 4 . . . . . Energy Cannon 15 | . . 2 . . 1 . . 1 . . . . . . . . . . . 1 . . . . 1 5 . 3 1 . . Ballistic Gun 40 | 1 1 2 1 1 2 1 3 . . . 2 . 2 . . . 4 . . 2 . . 1 . 3 6 3 1 1 3 . Ballistic Cannon 2 | . . . . . 1 . . . . . . . . . . . . . . . . . . . . . . 1 . . . Launcher 11 | . 1 . 1 . . . . 1 . 1 . . . . . . . . . 1 1 . 2 . . . . 1 2 . . Special Weapon 1 | . 1 . . . . . . . . . . . . . . . . . . . . . . . . . . . . . . Impact Weapon 1 | . . . . . . . . . . . . . . . . . . . . . . . . . . . . 1 . . . Slashing Weapon . | . . . . . . . . . . . . . . . . . . . . . . . . . . . . . . . . Piercing Weapon . | . . . . . . . . . . . . . . . . . . . . . . . . . . . . . . . . Special Melee Weapon . | . . . . . . . . . . . . . . . . . . . . . . . . . . . . . . . . Unidentified Prototypes 69 | . 1 3 . . . . . . . . . 1 4 . . . 4 . 1 . . . 5 . 3 16 6 20 2 3 . Corrupted Parts 7 | . . . . . . . . . . . . . . . . . . . . . . . 2 1 . 4 . . . . . System Corruption 61 | . . . . . . . . . . . . . . . . . . . . . . . 20 10 . 31 . . . . . Parts Lost 75 | . 3 4 . . 3 . 2 8 . 11 . 4 2 . 2 1 1 . . 9 2 . 1 . 4 1 . 1 1 1 14 Power 18 | . 1 2 . . . . 1 1 . 3 . . 1 . 1 . . . . 3 . . . . . . . . . 1 4 Propulsion 19 | . 1 . . . . . 1 4 . 4 . 3 . . . 1 . . . . . . 1 . 1 . . . . . 3 Utility 23 | . . 1 . . 3 . . . . 2 . 1 . . . . 1 . . 4 2 . . . 1 . . 1 1 . 6 Weapon 15 | . 1 1 . . . . . 3 . 2 . . 1 . 1 . . . . 2 . . . . 2 1 . . . . 1 Highest Loss Streak 9 | . 2 2 . . 2 . 2 7 . 4 . 2 1 . 2 1 1 . . 3 2 . 1 . 2 1 . 1 1 1 9 To Critical Strikes 2 | . . . . . . . . . . 1 . . 1 . . . . . . . . . . . . . . . . . . Average Backups 20 | 4 10 17 23 24 23 23 23 22 25 24 21 24 24 25 23 22 23 22 21 22 20 24 21 19 19 18 17 18 16 16 15 Power . | . . . . 1 1 . . . . 1 2 2 2 2 1 1 1 1 1 . . 1 1 1 1 . . 1 1 . . Propulsion 2 | 2 5 4 6 6 5 5 4 1 2 3 1 . 1 2 2 . 1 1 1 1 1 1 1 1 . 1 1 . . . . Utility 8 | . 2 7 6 6 7 6 6 8 9 8 8 9 11 11 11 11 11 13 12 11 10 11 10 11 10 9 9 9 9 8 7 Weapon 7 | . 1 6 10 11 10 12 11 11 12 10 8 10 9 9 8 8 8 7 6 9 8 11 8 6 6 7 6 5 4 3 5 Tool/Special . | . . . . . . . . . . . . . . . . . . . . . . . . . . . . . . . . Unused Backups 79 | . 5 9 . 2 2 . 1 2 3 3 . 8 2 . . 3 9 . 2 4 2 . 4 1 2 3 3 3 2 1 3 Power 10 | . . . . . . . . . . . . 2 . . . 1 2 . . . . . . . 2 1 2 . . . . Propulsion 16 | . 4 . . . 2 . . . . 2 . 2 . . . . . . 1 . 2 . . 1 . . . . 1 1 . Utility 27 | . . 6 . . . . 1 . 3 . . 1 1 . . 2 5 . 1 2 . . 1 . . 1 . 2 . . 1 Weapon 22 | . 1 3 . 2 . . . 2 . 1 . 3 1 . . . 1 . . 2 . . 3 . . 1 1 . . . 1 Tool/Special 4 | . . . . . . . . . . . . . . . . . 1 . . . . . . . . . . 1 1 . 1 Average Slot Usage (%) 86 | . 98 98 99 100 94 91 91 83 88 95 97 99 91 81 82 87 87 94 89 81 76 80 75 74 78 75 81 81 78 81 65 Engine 5 | . 14 9 10 10 8 13 8 4 7 15 12 14 12 12 14 16 8 . . . . . . . . . . . . . . Core 1 | . . . . . . . . . 4 2 6 3 4 . . . 2 5 5 5 7 10 6 5 . . . . . . . Reactor 4 | . . . . . . . . . . . . . . . . . 5 11 11 9 5 5 4 5 9 8 10 11 8 10 9 Treads 21 | . 26 35 39 40 33 28 27 27 28 27 24 24 18 12 12 15 15 16 12 14 15 15 14 15 13 16 15 16 16 15 13 Device 13 | . 14 15 10 10 12 13 20 20 20 14 12 11 12 12 12 11 14 16 16 9 7 10 7 9 10 9 15 15 15 15 10 Storage 6 | . 14 10 10 10 8 7 7 7 7 7 6 6 6 6 6 5 5 5 5 5 5 5 5 5 4 4 4 4 4 3 2 Processor 4 | . . . . . . 6 7 7 7 7 6 6 6 6 6 10 6 5 5 7 5 5 5 5 4 4 4 4 4 3 3 Protection 4 | . . 6 10 10 8 7 . . . 5 6 5 6 6 6 5 4 5 5 4 4 5 7 5 4 4 4 3 3 2 2 Energy Gun 6 | . 13 2 . . . . . . . 5 6 12 12 12 11 10 7 11 11 11 15 25 11 10 13 5 3 3 3 3 2 Energy Cannon 3 | . . 9 10 9 8 7 1 10 12 7 5 . . . . . . . . 3 2 . . . 2 1 . 3 . . . Ballistic Gun 11 | . 13 8 9 9 12 2 17 4 . . 10 12 11 12 12 11 13 16 16 9 5 . 11 14 8 15 20 16 19 21 15 Peak Build Rating 287 | 7 20 33 32 22 44 40 51 50 50 58 65 86 115 115 115 128 145 134 141 164 155 155 163 161 205 208 234 246 264 270 287 Average Rating 125 | 5 7 27 23 21 34 39 45 42 47 54 61 74 96 115 114 125 130 134 138 148 143 152 153 157 170 188 225 239 245 257 223 On Entrance 110 | . 7 20 33 21 22 29 40 50 45 50 50 65 85 115 115 115 126 134 134 139 137 155 150 163 161 184 204 232 240 264 264 Avg Prop Armor Cover (%) 10 | . . . 5 . . . . 19 . . . . . . . . . . . . . . . . 6 5 . . . . . Naked Turns 34 | . . . . . . . . . . . . . . . . . . . . . . . . . . . . . . . 34 Heaviest Build 222 | 14 29 103 107 108 117 124 124 111 108 137 137 145 145 135 146 150 198 198 198 201 183 176 198 192 204 206 213 210 219 216 222 Greatest Support 300 | 40 40 80 80 80 83 83 83 83 80 80 80 108 160 160 160 190 183 126 150 225 210 210 215 215 225 260 270 300 300 300 300 Greatest Overweight (x) 4 | . . 1 1 1 1 1 1 4 1 2 1 2 2 . . . 1 1 2 . . . 1 . 1 1 1 . . . 1 Average Overweight (x) . | . . . 1 1 1 1 1 1 1 1 1 1 . . . . . 1 1 . . . . . . . . . . . . Largest Inventory Capacity 25 | 8 15 25 25 25 25 25 25 25 25 25 25 25 25 25 25 25 25 25 25 25 25 25 25 25 25 25 25 25 25 25 25 Average Capacity 23 | 7 11 19 25 25 25 25 25 25 25 25 25 25 25 25 25 25 25 25 25 25 25 25 25 25 25 25 25 25 25 25 23 Most Carried 25 | 8 15 25 25 25 25 25 25 25 25 25 23 25 25 25 25 25 25 24 25 25 25 25 25 25 25 25 25 25 25 25 25 Average Carried 23 | 4 10 17 23 24 24 24 24 22 24 24 21 24 24 25 23 22 24 24 24 24 22 25 24 24 24 24 24 24 24 24 21 Final Capacity 25 | 8 15 25 25 25 25 25 25 25 25 25 25 25 25 25 25 25 25 25 25 25 25 25 25 25 25 25 25 25 25 25 5 Final Carried 25 | 7 15 25 25 25 25 24 24 25 25 23 23 25 25 25 22 25 24 24 25 23 25 25 25 25 25 25 25 25 25 25 5 Class Distribution -------------------- 31% | Scavenger-Tank 20% | Scavenger-Executioner 18% | Scavenger-Mutant 7% | Mutant 7% | Alien-Executioner 4% | Commander-Mutant 3% | Scavenger-Skirmisher Dominant Class ---------------- Mutant | -10/Materials Scavenger-Mutant | -9/Materials Scavenger-Mutant | -9/Storage Commander-Mutant | -9/Garrison Commander-Tank | -8/Materials Scavenger-Skirmisher | -7/Factory Scavenger-Skirmisher | -7/Lower Caves Scavenger-Mutant | -7/Lower Caves Scavenger-Mutant | -7/Zion Scavenger-Mutant | -6/Proximity Caves Scavenger-Tank | -6/Factory Scavenger-Tank | -6/Extension Scavenger-Tank | -6/Cetus Scavenger-Tank | -6/Archives Scavenger-Tank | -6/Hub_04(d) Scavenger-Tank | -5/Factory Scavenger-Tank | -5/Garrison Scavenger-Tank | -5/Factory Scavenger-Tank | -5/DSF Scavenger-Tank | -4/Factory Scavenger-Tank | -4/Upper Caves Scavenger-Tank | -4/Upper Caves Scavenger-Tank | -4/Warlord Scavenger-Tank | -3/Proximity Caves Scavenger-Executioner | -3/Research Hacker-Tank | -3/Testing Scavenger-Executioner | -2/Research Scavenger-Executioner | -2/Quarantine Alien-Executioner | -2/Section 7 Alien-Executioner | -1/Access Alien-Executioner | -1/Command Resources | -11 -10 -9 -9 -9 -8 -7 -7 -7 -7 -6 -6 -6 -6 -6 -6 -5 -5 -5 -5 -4 -4 -4 -4 -3 -3 -3 -2 -2 -2 -1 -1 ----------- Run | Yrd Mat Mat Sto Gar Mat Fac Low Low Zio Pro Fac Ext Cet Arc Hub Fac Gar Fac DSF Fac Upp Upp War Pro Res Tes Res Qua Sec Acc Com Matter Collected 24679 | 252 400 1164 284 559 252 . 852 394 40 173 18 1194 235 . 195 54 1750 . 292 1637 760 30 745 489 698 1581 2289 2123 3801 1265 1153 Remotely 4856 | . . . . . . . . . . . . . . . . . . . . 299 . . . . . 248 509 498 1567 858 877 Salvage Created 36858 | 100 584 1796 757 424 393 . 300 569 65 670 18 1571 270 . 759 569 2218 . 647 4841 823 . 2353 186 693 1897 1799 2465 5366 1992 2733 Parts 1588 | 5 44 111 39 33 19 . 8 20 2 23 1 41 5 . 35 33 97 . 24 179 25 . 88 3 30 109 76 110 251 88 89 Haulers Intercepted 15 | . 2 5 3 . 2 . . . . . . . . . . . . . 1 . . . . . 1 1 . . . . . Recyclers Shooed 19 | . . 5 1 . 1 . 1 . . . . . . . . . . . . 8 . . . . . 1 . . . . 2 Parts Field Recycled . | . . . . . . . . . . . . . . . . . . . . . . . . . . . . . . . . Retrieved Matter . | . . . . . . . . . . . . . . . . . . . . . . . . . . . . . . . . Parts Self-Destructed 57 | . . . . . . . 8 20 2 20 . . . . . . . . . . 3 . . 4 . . . . . . . Prevented 24 | . . . . . . . . . . 5 . . . . . . . . . . 19 . . . . . . . . . . Parts Restored . | . . . . . . . . . . . . . . . . . . . . . . . . . . . . . . . . Kills | -11 -10 -9 -9 -9 -8 -7 -7 -7 -7 -6 -6 -6 -6 -6 -6 -5 -5 -5 -5 -4 -4 -4 -4 -3 -3 -3 -2 -2 -2 -1 -1 ------- Run | Yrd Mat Mat Sto Gar Mat Fac Low Low Zio Pro Fac Ext Cet Arc Hub Fac Gar Fac DSF Fac Upp Upp War Pro Res Tes Res Qua Sec Acc Com Combat Hostiles Destroyed 506 | . 15 34 10 15 5 . 5 10 . 17 . 20 4 . 12 10 44 . 5 52 10 . 35 5 11 24 21 25 67 19 31 Guns 322 | . 12 11 2 6 2 . 5 2 . 3 . 18 3 . 9 4 41 . 5 27 1 . 13 5 8 17 21 17 59 17 14 Cannons 45 | . . 20 5 4 . . . . . 5 . . 1 . . . . . . 3 1 . . . . 1 . 1 1 . 3 AOE 85 | . 3 3 3 5 3 . . 8 . 7 . . . . 3 6 2 . . 6 4 . 11 . 3 5 . . 6 1 6 Classes Destroyed 29 | 2 6 6 . 1 . . 1 . . . . . . . . . 3 . 1 . 1 . 2 . . 1 2 1 2 . . Worker 31 | . 3 1 2 . . . . . . . . 1 . . 2 2 . . . 5 . . . . . 5 1 1 3 3 2 Builder 30 | . 1 2 . . . . . . . . 1 2 . . 3 . . . . 6 . . . . 1 2 1 . 8 3 . Tunneler 8 | 1 1 1 . . . . . . . . . 1 . . 1 . . . . 1 . . . . . . 1 . . 1 . Hauler 15 | . 2 5 3 . 2 . . . . . . . . . . . . . 1 . . . . . 1 1 . . . . . Recycler 20 | 1 . 2 3 . 1 . . . . . . . . . 1 1 . . . 5 . . . . . . . . 1 2 3 Mechanic 4 | . . 1 . . 1 . . . . . . . . . . . . . . 1 . . . . . . . . 1 . . Operator 4 | . . 1 . . . . . . . . . 1 . . . . . . . . . . . . . 1 . . . 1 . Watcher 11 | . 1 2 1 . 1 . . . . . . . 2 . . . 1 . . 2 . . . . . . . . 1 . . Swarmer 101 | . 6 6 3 12 1 . . 8 . 9 . . . . 3 5 12 . . 1 1 . . 5 5 4 1 . 14 . 5 Cutter 2 | . . . . . . . . . . . . . . . . . 2 . . . . . . . . . . . . . . Saboteur 4 | . . . . . . . . . . . . . . . . . 2 . . 1 . . . . . . . . 1 . . Grunt 175 | . 9 15 5 1 4 . 4 2 . 4 . 15 1 . 4 . 16 . 3 18 5 . 13 . 6 4 7 2 21 4 12 Brawler 21 | . . 2 . . 1 . . . . 4 . 1 . . 1 . . . . 4 . . 4 . . . . 1 3 . . Duelist 18 | . . 1 . . . . . . . . . . . . 1 . . . . 6 2 . 1 . . . . 1 5 . 1 Protector 5 | . . 1 . . . . . . . . . . . . . . . . . . . . 2 . . . . . 2 . . Researcher 5 | . . . . . . . . . . . . . . . . . . . . . . . . . . 3 . . 2 . . Sentry 43 | . . 9 2 5 . . . . . 1 . 3 . . 2 2 4 . . 1 1 . . . . 1 . 6 2 3 1 Demolisher 3 | . . . . . . . . . . . . . . . . . . . . . . . 2 . . . 1 . . . . Hunter 45 | . . . . 1 . . . . . . . 1 . . 1 2 1 . 1 11 . . 2 . . 4 4 7 3 3 4 Programmer 45 | . . . . . . . 1 . . . . . . . . . 2 . . 9 1 . 7 . . 11 3 . 2 5 4 Heavy 2 | . . . . . . . . . . . . . . . . . . . 1 1 . . . . . . . . . . . Q-Series 2 | . . . . . . . . . . . . . . . . . . . . . . . . . . . . . 2 . . Behemoth 2 | . . . . . . . . . . . . . . . . . . . . . . . . . . . 1 . 1 . . Cetus Guard 3 | . . . . . . . . . . . . . 3 . . . . . . . . . . . . . . . . . . Quarantine Guard 7 | . . . . . . . . . . . . . . . . . . . . . . . . . . . . 7 . . . S7 Guard 3 | . . . . . . . . . . . . . . . . . . . . . . . . . . . . . 3 . . Tracker 4 | . . . . . . . . . . . . . . . . . . . . . . . . . . . . . 2 2 . Combat Programmer 5 | . . . . . . . . . . . . . . . . . . . . . . . . . . . . . 2 2 1 Striker 5 | . . . . . . . . . . . . . . . . . . . . . . . 1 . . . 2 . . . 2 Executioner 8 | . . . . . . . . . . . . . . . . . 2 . . . . . 3 . . . 1 . 2 . . Alpha 7 2 | . . . . . . . . . . . . . . . . . . . . . . . . . . . . . 2 . . Fortress 1 | . . . . . . . . . . . . . . . . . . . . . . . . . . . . 1 . . . Decomposer 6 | . . . . . . . . 6 . . . . . . . . . . . . . . . . . . . . . . . Packrat 4 | . . . . . . . 1 3 . . . . . . . . . . . . . . . . . . . . . . . Samaritan 1 | . . . . . . . . . . . . . . . . . . . . . 1 . . . . . . . . . . Thug 5 | . . . . . . . . 1 . . . 1 . . . . 3 . . . . . . . . . . . . . . Savage 1 | . . . . . . . . . . . . 1 . . . . . . . . . . . . . . . . . . . Butcher 1 | . . . . . . . . . . . . . . . . 1 . . . . . . . . . . . . . . . Guerrilla 2 | . . . . . . . . . . . . . . . . . . . . . . . . . . . 2 . . . . Mutant 1 | . . . . . . . . . . . . . . . . . . . . . . . . . . . 1 . . . . Best Kill Streak 28 | 2 5 7 8 4 6 . 3 6 . 4 1 7 2 . 10 6 5 . 3 22 9 . 28 3 6 7 5 7 18 6 9 Combat Bots Only 28 | . 3 4 3 4 3 . 3 6 . 4 . 6 2 . 4 5 5 . 3 16 9 . 28 3 6 5 5 7 17 5 8 Max Kills in Single Turn 5 | 1 3 5 4 3 2 . 1 4 . 2 1 2 1 . 3 5 2 . 1 2 2 . 4 2 2 5 2 2 4 2 4 Gunslinging 2 | . . . . . . . . . . . . 1 . . . . 1 . . . . . . 1 . . 1 . 2 . 1 Exploded 5 | . 3 3 2 2 1 . . 4 . 2 . . . . 2 5 2 . . 1 2 . 4 . 2 4 . . 4 1 2 Melee . | . . . . . . . . . . . . . . . . . . . . . . . . . . . . . . . . Uniques/NPCs Destroyed 1 | . . . . . . . . . . . . . . . . . . . . . . . . . . . . . . . 1 MAIN.C Shell (-1/Command) Combat | -11 -10 -9 -9 -9 -8 -7 -7 -7 -7 -6 -6 -6 -6 -6 -6 -5 -5 -5 -5 -4 -4 -4 -4 -3 -3 -3 -2 -2 -2 -1 -1 -------- Run | Yrd Mat Mat Sto Gar Mat Fac Low Low Zio Pro Fac Ext Cet Arc Hub Fac Gar Fac DSF Fac Upp Upp War Pro Res Tes Res Qua Sec Acc Com Hostile Shots Fired 3001 | . 86 150 58 32 32 . 75 76 . 128 . 81 33 . 30 36 176 . 25 345 25 . 90 22 68 134 73 114 364 68 680 Missed 809 | . 15 33 12 9 7 . 23 25 . 34 . 22 5 . 5 7 40 . 6 83 11 . 40 2 14 32 20 37 77 20 230 Hits 2192 | . 71 117 46 23 25 . 52 51 . 94 . 59 28 . 25 29 136 . 19 262 14 . 50 20 54 102 53 77 287 48 450 Melee 68 | . . 6 . . . . . . . 7 . . . . . . 5 . . 39 . . . . . . 1 4 5 . 1 Projectile 2124 | . 71 111 46 23 25 . 52 51 . 87 . 59 28 . 25 29 131 . 19 223 14 . 50 20 54 102 52 73 282 48 449 AOE 28 | . . . . . . . . . . . . . . . . . . . . . . . 8 . . . 1 . 12 . 7 Critical Strikes 149 | . . 6 2 1 2 . 2 1 . 6 . . 7 . . . 7 . 2 27 1 . 3 . 6 9 4 4 15 . 44 Actively Blocked 72 | . . . . . . . . . . . . . . . . . . . . 16 . . . . . . . 2 11 . 43 Part Disruptions 12 | . . . . . . . . . . . . . . . . . . . . 1 1 . 1 . . 1 . . . . 8 Damage Taken 40529 | . 825 1758 562 466 573 . 681 1104 . 1746 . 1020 738 . 803 490 1964 . 313 5078 539 . 1150 229 930 1722 778 1103 3634 541 11782 Core 4403 | . 171 158 46 40 28 . 79 92 . 140 . 81 45 . 15 19 165 . 37 246 13 . 55 12 8 69 10 100 259 . 2515 Absorbed by Shields 10812 | . . . . . . . . . . . . . . . . . 818 . 322 1123 . . 291 227 305 520 807 1134 3115 564 1586 Reduced by Siege Mode 1355 | . . . . . . . . . . . . . . . . 18 76 . 2 395 . . 48 12 36 80 30 70 195 58 335 Ignored by Resistances 1459 | . . . 18 . . . . . . . . . . . . . . . . 145 . . . . . . . . 330 103 863 Regen/Repaired (Parts) 7843 | . 183 134 . . . . . . . . . 26 18 . . . . . . 30 . . 589 . 8 . . 520 2898 . 3437 Core Remaining (%) 77 | 100 31 . . 92 96 . . . . 67 . . . . 87 . . . 82 . . . . 76 . 95 . . 49 . . Volleys Fired 1532 | 6 74 136 35 70 17 5 24 31 5 44 2 43 20 . 30 11 132 . 15 160 35 . 51 7 26 87 57 87 208 46 68 Largest 7 | 2 2 2 2 2 3 1 3 3 2 2 4 4 4 . 4 4 4 . 5 5 4 . 5 5 6 6 6 6 6 7 7 Hottest 446 | 70 100 133 91 91 114 68 118 166 136 148 206 213 202 . 390 226 241 . 278 392 362 . 277 277 446 370 274 333 288 368 380 Shots Fired 4188 | 12 136 266 64 107 37 5 53 63 9 80 5 165 65 . 81 38 381 . 74 411 43 3 119 35 103 232 236 232 679 227 227 Gun 3500 | 12 132 142 30 35 20 . 42 21 . 31 3 165 65 . 76 37 380 . 74 305 9 3 91 35 93 193 228 204 654 220 200 Cannon 558 | . . 124 30 67 12 5 11 39 9 44 1 . . . . . . . . 72 23 . . . 7 33 8 28 21 3 21 Launcher 129 | . 3 . 4 5 5 . . 3 . 5 1 . . . 5 1 1 . . 34 11 . 28 . 3 6 . . 4 4 6 Special 1 | . 1 . . . . . . . . . . . . . . . . . . . . . . . . . . . . . . Kinetic 2339 | 6 66 113 30 35 22 4 52 21 . . 2 87 40 . 39 18 208 . 44 167 . . 61 21 41 124 180 142 478 178 160 Thermal 1660 | 6 67 153 30 67 10 1 1 39 9 75 2 78 25 . 37 19 172 . 30 210 32 3 31 14 59 102 56 62 180 42 48 Explosive 42 | . 3 . 4 5 5 . . 3 . 5 1 . . . 5 1 1 . . . . . 4 . 3 2 . . . . . Electromagnetic 134 | . . . . . . . . . . . . . . . . . . . . 34 11 . 23 . . 4 . 28 21 7 6 Entropic 13 | . . . . . . . . . . . . . . . . . . . . . . . . . . . . . . . 13 Robot Hit Streak 74 | 4 14 20 8 9 5 . 20 8 11 16 2 17 10 . 10 7 19 . 11 50 6 . 18 12 23 15 16 38 74 25 10 Robot Miss Streak 8 | 1 5 4 5 3 3 . 2 3 . 3 1 4 2 . 4 2 7 . 3 5 7 . 3 2 4 4 8 4 5 5 5 Penetration Max 2 | . . . . . . . . . . . . 1 1 . 1 . 1 . 1 1 . . 1 . 1 1 2 1 2 1 1 Secondary Targets 85 | . . 1 . . . . 3 . . . . 6 1 . 1 2 10 . 1 5 . . 1 1 5 5 8 3 28 . 4 Max Gunslinging Chain 3 | . . 1 . . . . 1 . . . . 1 1 . 1 1 1 . 1 1 . . 1 1 1 1 1 1 3 . 1 Shots Hit Robots 2390 | 8 86 163 35 34 17 . 34 34 8 51 1 111 39 . 47 23 204 . 53 232 7 . 92 19 55 102 123 145 423 121 123 Core Hits 1605 | 4 38 76 21 27 29 . 12 23 1 46 1 71 21 . 43 23 85 . 14 199 33 . 129 9 33 64 76 71 287 69 100 Critical Kills 48 | . 1 . . . . . . 1 . 1 . 1 1 . 1 1 4 . 2 3 . . . . . 6 6 3 10 6 1 Critical Parts Destroyed 45 | . . . . . . . . . . . . 2 . . 7 2 6 . . 1 . . 2 . . 5 3 2 8 5 2 Critical Strikes 126 | . 2 1 . . . . . 1 . 1 . 5 4 . 8 3 20 . 2 9 . . 4 . 1 12 9 6 22 11 5 Burn 25 | . 1 1 . . . . . . . . . 2 3 . . . 10 . . 4 . . 2 . 1 1 . . . . . Meltdown 2 | . . . . . . . . . . 1 . . . . . . . . . 1 . . . . . . . . . . . Destroy 99 | . 1 . . . . . . 1 . . . 3 1 . 8 3 10 . 2 4 . . 2 . . 11 9 6 22 11 5 Melee Attacks 4 | . . . . . . . . . . . . . . . . . . . . . . . . . . . . 4 . . . Kinetic 4 | . . . . . . . . . . . . . . . . . . . . . . . . . . . . 4 . . . Impact . | . . . . . . . . . . . . . . . . . . . . . . . . . . . . . . . . Slashing . | . . . . . . . . . . . . . . . . . . . . . . . . . . . . . . . . Piercing . | . . . . . . . . . . . . . . . . . . . . . . . . . . . . . . . . Sneak Attacks . | . . . . . . . . . . . . . . . . . . . . . . . . . . . . . . . . Combat Hostiles . | . . . . . . . . . . . . . . . . . . . . . . . . . . . . . . . . Follow-up Attacks . | . . . . . . . . . . . . . . . . . . . . . . . . . . . . . . . . Damage Inflicted 90526 | 76 1447 3686 978 1088 1351 . 638 1385 165 1868 11 2660 1129 . 2465 1259 5741 . 1354 10298 1172 . 6172 365 1906 4171 3968 4404 14243 4113 12413 Guns 57219 | 76 884 1248 272 293 162 . 492 326 . 694 11 2630 761 . 1457 533 5655 . 1354 5799 120 . 2073 365 1461 2929 3944 3284 13215 3694 3487 Cannons 12727 | . . 1601 390 330 141 . 146 457 165 638 . . 115 . . . . . . 821 40 . 112 . 31 262 . 992 300 41 6145 Explosions 20208 | . 557 807 305 465 1039 . . 602 . 536 . . 238 . 1008 726 86 . . 3660 1002 . 3987 . 395 914 . . 722 378 2781 Melee 128 | . . . . . . . . . . . . . . . . . . . . . . . . . . . . 128 . . . Ramming 244 | . 6 30 11 . 9 . . . . . . 30 15 . . . . . . 18 10 . . . 19 66 24 . 6 . . Kinetic 37869 | 39 376 858 272 293 162 . 638 326 . . . 1179 449 . 751 222 3111 . 832 3341 . . 1381 205 723 1640 2978 2526 10469 2644 2454 Thermal 28899 | 37 508 2798 390 330 141 . . 457 165 1332 11 1451 665 . 706 555 2544 . 522 3490 207 . 1311 160 769 1551 966 886 2825 1131 2991 Explosive 6985 | . 557 . 305 465 1039 . . 602 . 536 . . . . 1008 395 86 . . . . . 856 . 395 579 . . 162 . . Electromagnetic 11007 | . . . . . . . . . . . . . . . . 87 . . . 3449 955 . 2624 . . 335 . 992 690 338 1537 Impact . | . . . . . . . . . . . . . . . . . . . . . . . . . . . . . . . . Slashing . | . . . . . . . . . . . . . . . . . . . . . . . . . . . . . . . . Piercing . | . . . . . . . . . . . . . . . . . . . . . . . . . . . . . . . . Entropic 5431 | . . . . . . . . . . . . . . . . . . . . . . . . . . . . . . . 5431 Phasic 91 | . . . . . . . . . . . . . . . . . . . . . . . . . . . . . 91 . . Highest Corruption 49 | . . 8 8 8 2 . 5 5 5 11 . . . . 7 . 13 13 13 30 18 18 20 14 9 49 . . 11 . . Average Corruption 10 | . . 6 8 8 1 . 4 5 5 10 . . . . 7 . 12 13 13 13 17 18 7 4 9 17 . . 5 . . Corruption Purged . | . . . . . . . . . . . . . . . . . . . . . . . . . . . . . . . . Corruption Blocked . | . . . . . . . . . . . . . . . . . . . . . . . . . . . . . . . . Effects 649 | . . 43 15 73 . . 11 21 4 33 . . . . 5 . 121 2 14 69 40 29 8 11 30 91 . . 29 . . Message Errors 167 | . . 6 5 18 . . 3 8 1 9 . . . . 2 . 30 . 3 13 13 9 1 4 7 30 . . 5 . . Matter Fused 146 | . . 12 1 21 . . 3 5 . 4 . . . . . . 30 2 4 14 12 7 1 2 5 18 . . 5 . . Heat Flow Errors 60 | . . 3 2 6 . . . 3 1 4 . . . . . . 10 . . 6 . 8 2 . . 13 . . 2 . . Energy Discharges 59 | . . 5 3 6 . . 1 1 1 3 . . . . 1 . 11 . 1 6 4 . . 1 6 6 . . 3 . . Parts Rejected 8 | . . . 1 . . . . . . 2 . . . . . . 2 . . . 1 . . . . 2 . . . . . Parts Fused 7 | . . 1 . 1 . . . . . . . . . . . . 2 . . . 1 . . . . 1 . . 1 . . Data Loss (minor) 69 | . . 9 1 9 . . 1 1 . 4 . . . . 1 . 15 . 1 6 4 2 1 2 4 4 . . 4 . . Data Loss (major) 26 | . . 2 . 2 . . 1 . . 1 . . . . . . 6 . 2 1 . . 2 1 4 3 . . 1 . . Misfires 43 | . . 3 . 9 . . 1 1 . 3 . . . . . . 6 . 1 4 3 3 . . 3 4 . . 2 . . Alerts 17 | . . 2 . 1 . . . . 1 . . . . . . . 2 . . 1 1 . 1 1 1 5 . . 1 . . Misdirections 3 | . . . . . . . . . . 1 . . . . . . . . . 2 . . . . . . . . . . . Weapon Failures 44 | . . . 2 . . . 1 2 . 2 . . . . 1 . 7 . 2 16 1 . . . . 5 . . 5 . . Overload Shots 3 | . . . . . . . . . . . . . . . 2 . . . . . . . . . . . 1 . . . . Overflow Damage 1828 | . 72 260 15 15 18 . . 137 3 14 . 14 . . 139 7 . . . 24 4 . 109 . 68 71 . . 21 . 837 Projectiles 899 | . . 2 . . 17 . . 99 3 14 . . . . . . . . . 17 . . 37 . . 19 . . . . 691 Explosions 887 | . 72 258 15 15 1 . . 38 . . . . . . 139 7 . . . 7 . . 72 . 68 28 . . 21 . 146 Melee 42 | . . . . . . . . . . . . 14 . . . . . . . . 4 . . . . 24 . . . . . Knockbacks 3 | . 1 . . . . . 1 . . . . 1 . . . . . . . . . . . . . . . . . . . Impact 2 | . 1 . . . . . . . . . . 1 . . . . . . . . . . . . . . . . . . . Kinetic 1 | . . . . . . . 1 . . . . . . . . . . . . . . . . . . . . . . . . Secondary . | . . . . . . . . . . . . . . . . . . . . . . . . . . . . . . . . Self-Inflicted Damage 1232 | . . 86 35 77 23 . . 33 . . . . . . 31 . . . . 213 260 . 47 . . 6 . . 136 45 240 Shots 64 | . . 1 1 2 1 . . 1 . . . . . . 1 . . . . 10 24 . 2 . . 1 . . 1 6 13 Rammed 25 | . 7 7 1 . 1 . . . . . . 1 1 . . . . . . 1 1 . . . 1 2 1 . 1 . . Targets Rammed 28 | . 7 7 1 . 1 . . . . . . 2 1 . . . . . . 1 1 . . . 1 3 2 . 1 . . Kicked . | . . . . . . . . . . . . . . . . . . . . . . . . . . . . . . . . Crushed 3 | . . . . . . . . . . . . 1 . . . . . . . . . . . . . 1 1 . . . . Highest Temperature 551 | 100 270 362 440 202 . . . 162 203 235 9 126 9 . 165 51 444 . 228 551 179 241 260 108 513 474 50 93 286 165 203 Average Temperature 90 | 47 84 89 237 89 . . . 79 126 78 6 38 4 . 21 16 88 . 112 125 55 88 83 48 121 108 26 25 98 104 66 Received Heat Transfer 4744 | . 426 573 246 129 153 . 201 93 . 349 . 381 81 . 81 45 335 . 29 406 48 . 54 . 138 89 18 48 301 28 492 Thermoelectric Energy+ 116 | . . . . . . . . . . . . . . . . . . . . . . . . . . . . . . 59 57 Effects 25 | . 1 1 5 . . . . . . . . . . . . . 5 . . 10 . . . . 2 1 . . . . . Shutdowns 9 | . . . 1 . . . . . . . . . . . . . 3 . . 3 . . . . 1 1 . . . . . Energy Bleed 3 | . . . 2 . . . . . . . . . . . . . 1 . . . . . . . . . . . . . . Interference 6 | . 1 . . . . . . . . . . . . . . . 1 . . 4 . . . . . . . . . . . Matter Decay 2 | . . . . . . . . . . . . . . . . . . . . 1 . . . . 1 . . . . . . Short Circuit 3 | . . . 2 . . . . . . . . . . . . . . . . 1 . . . . . . . . . . . Damage (minor) 2 | . . 1 . . . . . . . . . . . . . . . . . 1 . . . . . . . . . . . Siege Activations 80 | . . . . . . . . . . . . . 1 . 3 2 15 . 3 9 3 . 2 1 1 7 4 7 14 5 3 Total Turns 1122 | . . . . . . . . . . . . . 5 . 48 22 181 . 27 196 24 . 32 12 21 66 34 109 190 103 52 Longest Duration 45 | . . . . . . . . . . . . . 5 . 28 18 24 . 12 44 21 . 21 12 21 19 12 34 41 45 40 Martial Activations . | . . . . . . . . . . . . . . . . . . . . . . . . . . . . . . . . Shielding Activations . | . . . . . . . . . . . . . . . . . . . . . . . . . . . . . . . . Robots Disrupted 1 | . . . . . . . . . . . . . . . . . . . . 1 . . . . . . . . . . . Combat Hostiles 1 | . . . . . . . . . . . . . . . . . . . . 1 . . . . . . . . . . . Robots Corrupted 49 | . . . . . . . . . . . . . . . . . . . . 16 5 . 11 . . 1 . 6 1 1 8 Combat Hostiles 47 | . . . . . . . . . . . . . . . . . . . . 15 4 . 11 . . 1 . 6 1 1 8 Parts Fried 117 | . . . . . . . . . . . . 2 . . . . . . . 36 17 . 18 . . 3 . 17 3 2 19 Impact Corruptions 5 | . . . . . . . . . . . . 1 . . . . . . . . 2 . . . . 2 . . . . . Robots Melted 6 | . . . . . . . . . . 2 . 2 . . . . 1 . . 1 . . . . . . . . . . . Combat Hostiles 6 | . . . . . . . . . . 2 . 2 . . . . 1 . . 1 . . . . . . . . . . . Parts Melted 78 | . 1 6 . 2 . . . . . 5 . 12 3 . 2 2 6 . . 16 . . 1 2 4 3 2 . 3 3 5 Heat Transferred 40591 | 111 1591 4159 703 592 259 . . 814 296 2722 25 3316 1223 . 1448 759 4484 . 777 4726 248 . 1554 222 1197 1665 888 851 2662 1075 2224 Parts Sabotaged 5 | . . . . . . . . . . . . . . . . . . . . 4 . . . . . . . . 1 . . Parts Stolen . | . . . . . . . . . . . . . . . . . . . . . . . . . . . . . . . . Parts Stripped 17 | . . . . . . . . . . . . . . . . . . . . . . . . . . . . 17 . . . Power Chain Reactions 18 | . . . . . . . . . . . . . . . . . . . . 2 1 . 9 . . . . . 1 4 1 Alert | -11 -10 -9 -9 -9 -8 -7 -7 -7 -7 -6 -6 -6 -6 -6 -6 -5 -5 -5 -5 -4 -4 -4 -4 -3 -3 -3 -2 -2 -2 -1 -1 ------- Run | Yrd Mat Mat Sto Gar Mat Fac Low Low Zio Pro Fac Ext Cet Arc Hub Fac Gar Fac DSF Fac Upp Upp War Pro Res Tes Res Qua Sec Acc Com Maximum Alert Level 5 | . . 2 2 5 5 4 . . . . . 1 . . 2 2 5 4 4 5 . . . . . 4 4 3 5 4 5 Low Security (%) 25 | 100 100 32 . . . . . . . . 100 81 100 100 59 26 . . . . . . . . 100 24 . . . . . Level 1 10 | . . 35 64 . . . . . . . . 18 . . 23 69 2 . . . . . . . . 42 . . . . . Level 2 11 | . . 32 35 26 . . . . . . . . . . 17 3 11 . . 20 . . . . . 16 3 8 11 . . Level 3 26 | . . . . 17 25 88 . . . . . . . . . . 10 . 79 20 . . . . . 7 90 91 50 . 9 Level 4 14 | . . . . 17 33 11 . . . . . . . . . . 19 100 20 42 . . . . . 9 6 . 24 100 58 Level 5 11 | . . . . 37 . . . . . . . . . . . . 55 . . 16 . . . . . . . . 9 . 32 High Security . | . . . . . 41 . . . . . . . . . . . . . . . . . . . . . . . 4 . . Max Security . | . . . . . . . . . . . . . . . . . . . . . . . . . . . . . . . . Peak Influence 2710 | 10 179 575 682 2143 2022 1100 . . . . 32 271 193 56 469 404 2710 1422 1136 1805 . . . . 126 1420 1129 1021 2090 1543 1854 Initial 1422 | . . . 242 445 1044 1100 . . . . 32 . 140 56 12 226 287 1422 981 596 . . . . 18 9 714 561 495 1253 982 Average 764 | 1 58 274 388 1239 1473 1071 . . . . 5 86 155 46 193 252 1583 1414 1042 1143 . . . . 33 433 949 870 1043 1315 1358 Influence Increases 23203 | 10 589 1213 682 1838 1209 17 120 220 5 472 30 832 328 . 594 448 2593 . 155 1875 235 . 685 145 368 2157 940 1076 2194 692 1481 Destroy 0b10 Robot/C 12160 | . 300 700 380 640 480 . 100 200 . 420 . 480 220 . 320 200 1020 . 100 1040 200 . 660 120 220 1060 440 500 1340 380 640 Destroy 0b10 Robot/NC 715 | 10 40 85 45 5 40 . . . 5 . 5 50 10 . 45 15 10 . 5 100 . . 10 . 10 50 15 5 80 50 25 Destroy Leader 1782 | . 56 204 88 20 100 . 20 20 . 40 . 64 10 . 82 40 50 . 20 170 20 . . 20 32 144 70 120 192 110 90 Allied During Kill 1533 | . . 14 95 304 269 . . . . 12 . 165 74 . 36 . 68 . . . . . . 5 . 395 50 27 . . 19 Successful Hack 317 | . 22 14 4 14 . . . . . . 12 30 . . . 40 14 . . 34 . . . . 44 13 . 15 11 50 . Disable Machine 1440 | . 75 90 30 30 75 15 . . . . . 15 . . 45 105 75 . 15 180 . . . . 30 315 30 75 195 15 30 Anti-Garrison Action 2000 | . . . . 650 150 . . . . . . . . . . . 1050 . . 150 . . . . . . . . . . . Destroy Structure 1873 | . 51 46 40 145 35 2 . . . . 13 13 14 . 51 48 156 . . 156 . . . . 32 180 108 138 361 87 197 Lose Combat Pursuer 975 | . 45 60 . 30 60 . . . . . . 15 . . 15 . 150 . 15 45 15 . 15 . . . 15 . 15 . 480 Miscellaneous 408 | . . . . . . . . . . . . . . . . . . . . . . . . . . . 212 196 . . . Influence Decreases 21442 | 10 589 638 571 381 1389 1151 755 562 65 419 83 582 436 106 166 502 293 1308 421 1216 1071 461 572 728 380 903 1212 1194 984 1247 1047 Entered New Map 10860 | . . . 333 241 1099 1071 385 78 60 . 21 . 110 86 24 238 123 1288 421 540 665 183 498 611 10 7 556 437 385 837 553 Time Decay 8490 | 10 559 598 198 . 100 80 350 404 5 269 62 402 206 20 120 254 . 20 . 586 386 278 64 77 330 606 616 707 589 380 214 Lost Part 720 | . 30 20 . . 30 . 20 80 . 110 . 30 20 . 20 10 10 . . 90 20 . 10 . 40 10 . 10 10 10 140 Lost Ally 1123 | . . 20 40 140 160 . . . . 40 . 51 100 . 2 . 160 . . . . . . 40 . 130 40 40 . 20 140 Purge Threat 249 | . . . . . . . . . . . . 99 . . . . . . . . . . . . . 150 . . . . . Squads Dispatched 110 | . 1 6 3 . 9 . . . . 1 . 1 1 . 7 2 . 1 1 21 . . . . 5 13 4 9 12 9 4 Investigation 10 | . 1 . . . . . . . . . . . 1 . . . . 1 . 1 . . . . . 1 3 2 . . . Extermination 15 | . . . . . . . . . . . . . . . . . . . . 4 . . . . . 4 . 1 3 2 1 Reinforcement 36 | . . 4 1 . 1 . . . . . . 1 . . 4 1 . . 1 4 . . . . 3 8 1 3 2 1 1 Assault 25 | . . 2 . . 7 . . . . 1 . . . . . . . . . 6 . . . . . . . . 6 1 2 Garrison 22 | . . . 2 . 1 . . . . . . . . . 3 1 . . . 6 . . . . 2 . . 3 . 4 . Intercept 2 | . . . . . . . . . . . . . . . . . . . . . . . . . . . . . 1 1 . Searches Triggered . | . . . . . . . . . . . . . . . . . . . . . . . . . . . . . . . . Construction Impeded 5 | . . . . . . . . . . . . . . . 1 . . . . 2 . . . . . 1 . . . 1 . Haulers Reinforced 6 | . . . . . . . . . . . . . . . 1 . . . . . . . . . 3 1 . 1 . . . Active Scanning Responses . | . . . . . . . . . . . . . . . . . . . . . . . . . . . . . . . . Cargo Convoy Interrupts . | . . . . . . . . . . . . . . . . . . . . . . . . . . . . . . . . Stealth | -11 -10 -9 -9 -9 -8 -7 -7 -7 -7 -6 -6 -6 -6 -6 -6 -5 -5 -5 -5 -4 -4 -4 -4 -3 -3 -3 -2 -2 -2 -1 -1 --------- Run | Yrd Mat Mat Sto Gar Mat Fac Low Low Zio Pro Fac Ext Cet Arc Hub Fac Gar Fac DSF Fac Upp Upp War Pro Res Tes Res Qua Sec Acc Com Distress Signals 51 | . 1 5 3 . 4 . . . . . . 1 2 . 4 . . . . 5 . . . . 7 3 5 1 3 4 3 Communications Jammed . | . . . . . . . . . . . . . . . . . . . . . . . . . . . . . . . . Distress Signals . | . . . . . . . . . . . . . . . . . . . . . . . . . . . . . . . . Times Spotted 883 | . 26 60 24 29 39 . 5 9 . 27 . 26 13 . 20 10 62 . 6 91 11 . 47 6 15 54 41 29 95 27 111 Peak Tracking Total 26 | . 5 5 6 6 21 . 4 4 . 4 . 4 5 . 6 5 5 . 4 12 5 . 11 3 6 6 8 7 9 4 26 Tactical Retreats 37 | . 1 4 . 2 3 . . . . . . 1 . . 1 . 7 . 1 3 1 . 1 . . . 1 . 1 . 10 Traps | -11 -10 -9 -9 -9 -8 -7 -7 -7 -7 -6 -6 -6 -6 -6 -6 -5 -5 -5 -5 -4 -4 -4 -4 -3 -3 -3 -2 -2 -2 -1 -1 ------- Run | Yrd Mat Mat Sto Gar Mat Fac Low Low Zio Pro Fac Ext Cet Arc Hub Fac Gar Fac DSF Fac Upp Upp War Pro Res Tes Res Qua Sec Acc Com Traps Triggered 21 | . 1 1 . 1 2 . . . . . . 3 . . . . 7 . . 2 . . . . . 2 . . 1 . 1 Indirectly 3 | . . . . . . . . . . . . . . . . . . . . 2 . . . . . 1 . . . . . Trap Hack Attempts . | . . . . . . . . . . . . . . . . . . . . . . . . . . . . . . . . Triggered . | . . . . . . . . . . . . . . . . . . . . . . . . . . . . . . . . Disarmed . | . . . . . . . . . . . . . . . . . . . . . . . . . . . . . . . . Reprogrammed . | . . . . . . . . . . . . . . . . . . . . . . . . . . . . . . . . Reused . | . . . . . . . . . . . . . . . . . . . . . . . . . . . . . . . . Traps Extracted . | . . . . . . . . . . . . . . . . . . . . . . . . . . . . . . . . Installed . | . . . . . . . . . . . . . . . . . . . . . . . . . . . . . . . . Triggered . | . . . . . . . . . . . . . . . . . . . . . . . . . . . . . . . . Machines | -11 -10 -9 -9 -9 -8 -7 -7 -7 -7 -6 -6 -6 -6 -6 -6 -5 -5 -5 -5 -4 -4 -4 -4 -3 -3 -3 -2 -2 -2 -1 -1 ---------- Run | Yrd Mat Mat Sto Gar Mat Fac Low Low Zio Pro Fac Ext Cet Arc Hub Fac Gar Fac DSF Fac Upp Upp War Pro Res Tes Res Qua Sec Acc Com Machines Disabled 122 | . 5 6 2 11 6 1 . . . . . 1 . . 3 7 13 . 1 13 . . 1 . 2 23 2 6 16 1 2 Max in Single Turn 6 | . 2 4 1 2 1 1 . . . . . 1 . . 2 6 1 . 1 4 . . 1 . 1 4 1 1 1 1 1 Garrison Access 7 | . . . . . 1 . . . . . . . . . . . . . . 1 . . . . 1 . 3 . . 1 . Garrison Relay 12 | . . . . 7 . . . . . . . . . . . . 5 . . . . . . . . . . . . . . Phase Generator 1 | . . . . 1 . . . . . . . . . . . . . . . . . . . . . . . . . . . Energy Cycler 2 | . . . . . . . . . . . . 2 . . . . . . . . . . . . . . . . . . . Machines Repaired . | . . . . . . . . . . . . . . . . . . . . . . . . . . . . . . . . Machines Dismantled . | . . . . . . . . . . . . . . . . . . . . . . . . . . . . . . . . Machines Sabotaged . | . . . . . . . . . . . . . . . . . . . . . . . . . . . . . . . . Overloaded Fab Kills . | . . . . . . . . . . . . . . . . . . . . . . . . . . . . . . . . Hacking | -11 -10 -9 -9 -9 -8 -7 -7 -7 -7 -6 -6 -6 -6 -6 -6 -5 -5 -5 -5 -4 -4 -4 -4 -3 -3 -3 -2 -2 -2 -1 -1 --------- Run | Yrd Mat Mat Sto Gar Mat Fac Low Low Zio Pro Fac Ext Cet Arc Hub Fac Gar Fac DSF Fac Upp Upp War Pro Res Tes Res Qua Sec Acc Com Machines Accessed 81 | . 7 9 3 3 . . 1 . 1 . 3 7 1 . . 4 2 1 . 5 . . 1 1 6 5 1 8 3 9 . Terminals 55 | . 6 6 2 3 . . . . . . 2 7 1 . . 1 2 1 . 3 . . . 1 3 4 1 3 3 6 . Fabricators . | . . . . . . . . . . . . . . . . . . . . . . . . . . . . . . . . Repair Stations 7 | . 1 1 . . . . . . . . 1 . . . . . . . . . . . . . 2 . . 2 . . . Recycling Units . | . . . . . . . . . . . . . . . . . . . . . . . . . . . . . . . . Scanalyzers 9 | . . 2 . . . . . . . . . . . . . 2 . . . . . . . . . 1 . 3 . 1 . Garrison Access 7 | . . . 1 . . . . . . . . . . . . 1 . . . 2 . . . . 1 . . . . 2 . Total Hacks 165 | . 18 18 7 9 . . 1 . 2 . 5 14 3 . . 11 3 2 . 7 . . 1 1 11 10 3 15 6 18 . Successful 65 | . 11 7 2 1 . . 1 . 2 . 2 7 . . . 6 1 1 . 2 . . 1 1 3 4 . 4 3 6 . Failed 99 | . 7 11 5 8 . . . . . . 3 7 3 . . 5 2 1 . 5 . . . . 8 5 3 11 3 12 . Catastrophic 22 | . . 3 1 2 . . . . . . 1 2 . . . . . . . 2 . . . . 1 2 1 5 . 2 . Database Lockouts 1 | . . . . . . . . . . . . . . . . . . . . . . . . . . 1 . . . . . Manual 61 | . 15 11 . 4 . . . . . . 1 11 . . . 1 . . . 2 . . . . 7 5 1 3 . . . Terminals 110 | . 14 11 5 9 . . . . . . 2 14 3 . . 1 3 2 . 4 . . . 1 7 8 3 4 6 13 . Fabricators . | . . . . . . . . . . . . . . . . . . . . . . . . . . . . . . . . Repair Stations 17 | . 4 3 . . . . . . . . 3 . . . . . . . . . . . . . 3 . . 4 . . . Recycling Units . | . . . . . . . . . . . . . . . . . . . . . . . . . . . . . . . . Scanalyzers 24 | . . 4 . . . . . . . . . . . . . 8 . . . . . . . . . 2 . 7 . 3 . Garrison Access 10 | . . . 2 . . . . . . . . . . . . 2 . . . 3 . . . . 1 . . . . 2 . Terminal Hacks 25 | . 1 . 1 1 . . 1 . 2 . 1 4 . . . . 1 1 . 1 . . 1 1 . 2 . . 3 4 . Record 1 | . . . . . . . . . . . . . . . . . . . . . . . . 1 . . . . . . . Part Schematic 3 | . 1 . . . . . . . 2 . . . . . . . . . . . . . . . . . . . . . . Open Door 12 | . . . 1 . . . 1 . . . 1 2 . . . . . . . . . . 1 . . . . . 3 3 . Open DSF 1 | . . . . . . . . . . . . . . . . . . 1 . . . . . . . . . . . . . Branch Access Points 3 | . . . . . . . . . . . . . . . . . . . . 1 . . . . . 1 . . . 1 . Emergency Access Points 2 | . . . . 1 . . . . . . . . . . . . 1 . . . . . . . . . . . . . . Unreport Threat 3 | . . . . . . . . . . . . 2 . . . . . . . . . . . . . 1 . . . . . Fabricator Hacks . | . . . . . . . . . . . . . . . . . . . . . . . . . . . . . . . . Repair Station Hacks 10 | . 4 2 . . . . . . . . 1 . . . . . . . . . . . . . 1 . . 2 . . . Scan Component 6 | . 2 1 . . . . . . . . 1 . . . . . . . . . . . . . 1 . . 1 . . . Repair 4 | . 2 1 . . . . . . . . . . . . . . . . . . . . . . . . . 1 . . . Recycling Unit Hacks . | . . . . . . . . . . . . . . . . . . . . . . . . . . . . . . . . Scanalyzer 13 | . . 4 . . . . . . . . . . . . . 5 . . . . . . . . . 1 . 2 . 1 . Insert Component 2 | . . . . . . . . . . . . . . . . . . . . . . . . . . . . 2 . . . Retrieve Study 11 | . . 4 . . . . . . . . . . . . . 5 . . . . . . . . . 1 . . . 1 . Garrison Access Hacks 3 | . . . 1 . . . . . . . . . . . . 1 . . . . . . . . . . . . . 1 . Unlock Access 2 | . . . 1 . . . . . . . . . . . . 1 . . . . . . . . . . . . . . . Seal Access 1 | . . . . . . . . . . . . . . . . . . . . . . . . . . . . . . 1 . Unauthorized Hacks 14 | . 6 1 . . . . . . . . . 3 . . . . . . . 1 . . . . 2 1 . . . . . Terminals 14 | . 6 1 . . . . . . . . . 3 . . . . . . . 1 . . . . 2 1 . . . . . Assimilate 1 | . . . . . . . . . . . . . . . . . . . . . . . . . . 1 . . . . . Botnet 8 | . 1 1 . . . . . . . . . 3 . . . . . . . 1 . . . . 2 . . . . . . Skim 5 | . 5 . . . . . . . . . . . . . . . . . . . . . . . . . . . . . . Fabricators . | . . . . . . . . . . . . . . . . . . . . . . . . . . . . . . . . Repair Stations . | . . . . . . . . . . . . . . . . . . . . . . . . . . . . . . . . Recycling Units . | . . . . . . . . . . . . . . . . . . . . . . . . . . . . . . . . Scanalyzers . | . . . . . . . . . . . . . . . . . . . . . . . . . . . . . . . . Garrison Access . | . . . . . . . . . . . . . . . . . . . . . . . . . . . . . . . . Data Cores Recovered . | . . . . . . . . . . . . . . . . . . . . . . . . . . . . . . . . Used . | . . . . . . . . . . . . . . . . . . . . . . . . . . . . . . . . Hacking Detections 68 | . 7 8 2 3 . . . . . . 2 6 1 . . 4 2 1 . 4 . . . . 6 4 1 8 1 8 . Full Trace Events 6 | . . . 1 1 . . . . . . . . 1 . . . . . . 1 . . . . . . 1 1 . . . Feedback Events . | . . . . . . . . . . . . . . . . . . . . . . . . . . . . . . . . Feedback Blocked . | . . . . . . . . . . . . . . . . . . . . . . . . . . . . . . . . Robot Schematics Acquired 10 | . . . . . . . . . 3 . . . . . . . . . . . . . . . . 5 . 2 . . . Robots Built . | . . . . . . . . . . . . . . . . . . . . . . . . . . . . . . . . Authchips . | . . . . . . . . . . . . . . . . . . . . . . . . . . . . . . . . Time . | . . . . . . . . . . . . . . . . . . . . . . . . . . . . . . . . Total Robot Build Rating . | . . . . . . . . . . . . . . . . . . . . . . . . . . . . . . . . Part Schematics Acquired 33 | . 1 . . . . . . . 16 . . . . . . . . . . . . . . . . 6 . 9 1 . . Parts Built . | . . . . . . . . . . . . . . . . . . . . . . . . . . . . . . . . Authchips . | . . . . . . . . . . . . . . . . . . . . . . . . . . . . . . . . Time . | . . . . . . . . . . . . . . . . . . . . . . . . . . . . . . . . Total Part Build Rating . | . . . . . . . . . . . . . . . . . . . . . . . . . . . . . . . . Part Studies Acquired 11 | . . 4 . . . . . . . . . . . . . 5 . . . . . . . . . 1 . . . 1 . Parts Repaired 4 | . 2 1 . . . . . . . . . . . . . . . . . . . . . . . . . 1 . . . Time 114 | . 52 26 . . . . . . . . . . . . . . . . . . . . . . . . . 36 . . . Parts Recycled . | . . . . . . . . . . . . . . . . . . . . . . . . . . . . . . . . Recycled Matter . | . . . . . . . . . . . . . . . . . . . . . . . . . . . . . . . . Retrieved Matter . | . . . . . . . . . . . . . . . . . . . . . . . . . . . . . . . . Retrieved Components . | . . . . . . . . . . . . . . . . . . . . . . . . . . . . . . . . Parts Scanalyzed . | . . . . . . . . . . . . . . . . . . . . . . . . . . . . . . . . Part Schematics Acquired . | . . . . . . . . . . . . . . . . . . . . . . . . . . . . . . . . Parts Damaged . | . . . . . . . . . . . . . . . . . . . . . . . . . . . . . . . . Bothacking | -11 -10 -9 -9 -9 -8 -7 -7 -7 -7 -6 -6 -6 -6 -6 -6 -5 -5 -5 -5 -4 -4 -4 -4 -3 -3 -3 -2 -2 -2 -1 -1 ------------ Run | Yrd Mat Mat Sto Gar Mat Fac Low Low Zio Pro Fac Ext Cet Arc Hub Fac Gar Fac DSF Fac Upp Upp War Pro Res Tes Res Qua Sec Acc Com Used RIF Installer . | . . . . . . . . . . . . . . . . . . . . . . . . . . . . . . . . Robots Hacked . | . . . . . . . . . . . . . . . . . . . . . . . . . . . . . . . . Non-combat . | . . . . . . . . . . . . . . . . . . . . . . . . . . . . . . . . Combat . | . . . . . . . . . . . . . . . . . . . . . . . . . . . . . . . . Robot Hacks Applied . | . . . . . . . . . . . . . . . . . . . . . . . . . . . . . . . . Relay Couplers Released 59 | . . . . 27 2 . . . . . . . . . . . 24 . . 1 . . . . 1 . 4 . . . . Machine Destruction 59 | . . . . 27 2 . . . . . . . . . . . 24 . . 1 . . . . 1 . 4 . . . . Fabnet Peak Effective % . | . . . . . . . . . . . . . . . . . . . . . . . . . . . . . . . . Robots Rewired 39 | . . . . 18 . . . . . 2 . 13 . . . . 3 . . . . . . . . 3 . . . . . Allies Hacked 2 | . . . . . . . . . . . . . . . . . . . . . . . . . . 2 . . . . . Hacks Repelled . | . . . . . . . . . . . . . . . . . . . . . . . . . . . . . . . . Allies | -11 -10 -9 -9 -9 -8 -7 -7 -7 -7 -6 -6 -6 -6 -6 -6 -5 -5 -5 -5 -4 -4 -4 -4 -3 -3 -3 -2 -2 -2 -1 -1 -------- Run | Yrd Mat Mat Sto Gar Mat Fac Low Low Zio Pro Fac Ext Cet Arc Hub Fac Gar Fac DSF Fac Upp Upp War Pro Res Tes Res Qua Sec Acc Com Total Allies 96 | . . 5 10 18 6 . . . 4 2 . 17 . . 1 . 8 . . . . . 2 . . 11 . 3 . 1 8 Largest Group 13 | . . 5 10 13 10 . . . 4 4 . 13 9 1 1 1 4 . . . . . 2 2 . 6 3 3 . . 8 Highest-Rated Group 514 | . . 50 88 198 192 . . . 89 89 . 398 311 31 148 148 146 . . . . . 58 58 . 514 257 133 . . 109 Highest-Rated Ally 161 | . . 10 16 21 41 . . . 35 35 . 39 39 31 148 148 62 . . . . . 29 29 . 161 89 46 . . 15 Initial Warlord ECA Mod 20 | . . . . . 13 12 12 12 12 11 11 11 11 11 11 10 10 20 20 19 19 19 19 18 18 18 17 17 17 16 16 Total Orders 9 | . . . . 4 . . . . . . . . 2 . . . 2 . . . . . . . . 1 . . . . . STAY 5 | . . . . 2 . . . . . . . . 2 . . . . . . . . . . . . 1 . . . . . ROAM 1 | . . . . . . . . . . . . . . . . . 1 . . . . . . . . . . . . . . FOLLOW 3 | . . . . 2 . . . . . . . . . . . . 1 . . . . . . . . . . . . . . Ally Attacks 692 | . . 19 47 86 95 . . . . 23 . 64 62 . 34 . 47 . . . . . 2 10 . 150 11 15 . 1 26 Total Damage 14901 | . . 263 375 1112 2778 . . . . 418 . 1038 914 . 979 . 1446 . . . . . . 117 . 4349 196 287 . 57 572 Kills 120 | . . 2 9 22 22 . . . . 4 . 7 8 . 6 . 7 . . . . . . 1 . 28 1 1 . . 2 Allies Corrupted 1 | . . . . . . . . . . . . . . . . . . . . . . . . . . 1 . . . . . Allies Melted 2 | . . . . . . . . . . . . 1 . . . . . . . . . . . . . . 1 . . . . X0-1V1 Amusement Gains 609 | . 5 5 . 60 39 . . . . . 15 20 . . 20 5 40 . . 59 . . 20 . 40 81 20 40 81 25 34 Good Acts 155 | . . 10 5 10 2 1 2 1 . 1 1 13 2 . 1 1 8 . . 12 5 2 4 3 6 10 8 27 14 1 5 Bad Acts 92 | . . 10 . . . . 2 6 . 3 . 2 1 . . 3 7 1 1 11 . . 1 . 3 12 6 2 6 6 9 Intel | -11 -10 -9 -9 -9 -8 -7 -7 -7 -7 -6 -6 -6 -6 -6 -6 -5 -5 -5 -5 -4 -4 -4 -4 -3 -3 -3 -2 -2 -2 -1 -1 ------- Run | Yrd Mat Mat Sto Gar Mat Fac Low Low Zio Pro Fac Ext Cet Arc Hub Fac Gar Fac DSF Fac Upp Upp War Pro Res Tes Res Qua Sec Acc Com Active Infowar (turns) 13083 | 23 1904 914 . . . 173 787 896 2197 121 . . . . . . 2 . . 634 400 260 481 1 744 1001 1587 128 713 115 2 Terrain 10239 | . . . . . . 173 787 896 2197 121 . . . . . . . . . 634 400 260 481 . 744 1001 1587 128 713 115 2 Structural 914 | . . 914 . . . . . . . . . . . . . . . . . . . . . . . . . . . . . Seismic 1927 | 23 1904 . . . . . . . . . . . . . . . . . . . . . . . . . . . . . . Spoofing 2 | . . . . . . . . . . . . . . . . . 2 . . . . . . . . . . . . . . ECM 1 | . . . . . . . . . . . . . . . . . . . . . . . . 1 . . . . . . . Robot Analysis Total . | . . . . . . . . . . . . . . . . . . . . . . . . . . . . . . . . Derelict Logs Recovered 4 | . . . . . . . . 1 . 1 . . . . . . . . . . 1 1 . . . . . . . . . Drone Launches . | . . . . . . . . . . . . . . . . . . . . . . . . . . . . . . . . Drone Recoveries . | . . . . . . . . . . . . . . . . . . . . . . . . . . . . . . . . Exploration | -11 -10 -9 -9 -9 -8 -7 -7 -7 -7 -6 -6 -6 -6 -6 -6 -5 -5 -5 -5 -4 -4 -4 -4 -3 -3 -3 -2 -2 -2 -1 -1 ------------- Run | Yrd Mat Mat Sto Gar Mat Fac Low Low Zio Pro Fac Ext Cet Arc Hub Fac Gar Fac DSF Fac Upp Upp War Pro Res Tes Res Qua Sec Acc Com Turns Passed 35856 | 133 1946 2272 415 2078 368 177 789 1044 2197 848 336 1917 422 55 258 549 2856 48 283 1839 916 616 1397 467 1089 1972 2052 3127 1933 898 559 Spaces Moved 16223 | 66 804 934 132 821 138 68 308 431 1083 317 156 713 149 35 64 291 1116 21 85 738 411 339 644 240 447 908 1119 1713 840 402 690 Core 63 | 8 . . . . . . . . . . . . . . . . . . . . . . . . . . . . . . 55 Treads 15570 | 58 804 934 132 821 138 68 308 431 1083 317 156 713 149 35 64 291 1116 21 85 738 411 339 644 240 447 908 1119 1713 758 402 127 Legs . | . . . . . . . . . . . . . . . . . . . . . . . . . . . . . . . . Wheels . | . . . . . . . . . . . . . . . . . . . . . . . . . . . . . . . . Hover . | . . . . . . . . . . . . . . . . . . . . . . . . . . . . . . . . Flight . | . . . . . . . . . . . . . . . . . . . . . . . . . . . . . . . . Fastest Speed 50 | 50 160 160 200 200 200 222 222 200 200 200 200 200 160 160 160 160 160 240 240 160 180 180 173 173 160 165 155 150 153 153 50 Average Speed 179 | 146 160 181 200 200 211 222 222 208 200 210 200 214 210 160 160 160 193 240 240 164 180 180 179 173 204 165 160 152 153 153 127 Slowest Speed 320 | 160 160 240 200 200 222 222 222 320 200 240 200 266 320 160 160 160 240 240 320 180 180 180 270 173 249 249 241 161 153 153 240 Overloaded Moves . | . . . . . . . . . . . . . . . . . . . . . . . . . . . . . . . . Propulsion Burnouts . | . . . . . . . . . . . . . . . . . . . . . . . . . . . . . . . . Robots Hopped . | . . . . . . . . . . . . . . . . . . . . . . . . . . . . . . . . Potential Cave-ins 5 | . . . . . . 2 2 . . . . . . . . . . . . 1 . . . . . . . . . . . Cave-ins Triggered 2 | . . . . . . . . . . . . . . . 1 . . . . 1 . . . . . . . . . . . Microwarps 54 | . . . . . . . . . . . . . . . . . . . . . . . . . . . . . 8 . 46 Exploration Rate (%) 48 | 5 90 78 31 89 29 2 53 55 86 52 7 85 64 64 16 11 91 1 73 26 53 49 77 52 19 88 43 91 47 13 27 Regions Visited 31 Branch Regions 17 Pre-discovered Areas 8 | . 1 . . . . . 1 1 4 . . . . . . . . . . . . 1 . . . . . . . . . Known Exits Taken 17 | . 1 1 1 . . 1 1 . . 1 . 1 . . 1 1 . 1 . 1 . . . 1 1 1 . 1 1 1 . Unknown Exits Taken 11 | 1 . . . . 1 . . 1 1 . 1 . 1 1 . . . . . . 1 1 1 . . . 1 . . . . Scrap Searched 18 | . . . . . . . 4 2 3 1 . . . . . . . . . . 3 1 . 4 . . . . . . . Spaces Dug 191 | . . . . . 2 2 4 . . . . . . . 6 . . . . 37 13 . . . 1 24 12 23 50 6 11 Terrain Destroyed 1216 | . 57 36 45 123 34 5 9 33 . 37 14 12 15 . 44 32 32 . 1 91 32 1 33 7 16 93 46 49 191 44 84 Melee . | . . . . . . . . . . . . . . . . . . . . . . . . . . . . . . . . Projectile 541 | . . . . . 2 5 9 . . . . 12 . . 17 7 29 . 1 74 22 1 8 6 10 49 44 46 138 32 29 AOE 656 | . 57 36 45 123 32 . . 33 . 37 14 . 15 . 27 25 2 . . 17 10 . 24 . 6 43 . . 49 9 52 Terrain Rammed . | . . . . . . . . . . . . . . . . . . . . . . . . . . . . . . . . Walls Destroyed . | . . . . . . . . . . . . . . . . . . . . . . . . . . . . . . . . Machines Disabled . | . . . . . . . . . . . . . . . . . . . . . . . . . . . . . . . . Actions | -11 -10 -9 -9 -9 -8 -7 -7 -7 -7 -6 -6 -6 -6 -6 -6 -5 -5 -5 -5 -4 -4 -4 -4 -3 -3 -3 -2 -2 -2 -1 -1 --------- Run | Yrd Mat Mat Sto Gar Mat Fac Low Low Zio Pro Fac Ext Cet Arc Hub Fac Gar Fac DSF Fac Upp Upp War Pro Res Tes Res Qua Sec Acc Com Total 21043 | 92 1334 1269 215 1167 183 89 368 514 1110 415 177 1001 214 34 156 352 1637 20 143 1091 545 345 796 272 572 1226 1290 2135 1273 607 401 Wait 1735 | . 405 77 18 22 4 . 10 27 8 2 4 30 16 . 58 22 199 . 26 103 73 2 24 7 9 106 36 160 146 105 36 Move 15656 | 65 803 933 132 820 137 67 307 430 1082 316 155 712 148 34 63 291 1112 20 84 736 410 338 643 239 446 908 1118 1712 766 401 228 Hop . | . . . . . . . . . . . . . . . . . . . . . . . . . . . . . . . . Pick Up 364 | 14 19 41 9 5 6 4 8 8 4 10 6 15 4 . . 10 26 . 7 23 9 . 13 1 22 14 14 29 33 7 3 Fast Attach 197 | . . 5 . 1 2 . 1 . 4 5 . 5 5 . . . 21 . . 4 . 2 12 6 11 31 9 43 19 9 2 Attach 194 | 7 3 11 3 . 2 8 4 7 . 8 6 4 3 . 3 3 2 . 2 15 5 . 5 1 15 4 7 13 22 7 24 Detach 49 | . . . . . . 3 . . . . . . 2 . . . . . . 3 1 . 1 1 5 1 2 6 3 2 19 Swap 327 | . 14 21 10 10 8 1 6 9 . 7 2 11 4 . 2 7 25 . 1 30 9 1 19 3 11 20 21 13 33 18 11 Drop 475 | . 9 38 7 12 6 1 8 2 7 8 2 20 11 . . 8 53 . 8 15 2 2 28 7 26 43 24 68 42 12 6 Fire 1532 | 6 74 136 35 70 17 5 24 31 5 44 2 43 20 . 30 11 132 . 15 160 35 . 51 7 26 87 57 87 208 46 68 Melee 4 | . . . . . . . . . . . . . . . . . . . . . . . . . . . . 4 . . . Ram . | . . . . . . . . . . . . . . . . . . . . . . . . . . . . . . . . Kick . | . . . . . . . . . . . . . . . . . . . . . . . . . . . . . . . . Crush 26 | . 7 7 1 . 1 . . . . . . 2 1 . . . . . . 1 1 . . . 1 2 2 . . . . Escape Stasis 21 | . . . . . . . . . . . . 6 . . . . 10 . . 1 . . . . . . . . . . 4 Rewire 463 | . . . . 227 . . . . . 15 . 153 . . . . 57 . . . . . . . . 10 . . 1 . . Trap . | . . . . . . . . . . . . . . . . . . . . . . . . . . . . . . . . Miscellaneous . | . . . . . . . . . . . . . . . . . . . . . . . . . . . . . . . . Route ------- -11/Scrapyard -10/Materials (discovered 5 exits: *Mat x3 / *Min / *Sub) -9/Materials (discovered 5 exits: *Mat x3 / *Min / *Sto) -9/Storage (discovered 2 exits: Mat / Gar) -9/Garrison (discovered 3 exits: *Mat x3) -8/Materials -7/Factory -7/Lower Caves -7/Lower Caves (discovered 2 exits: *Fac / *Zio) -7/Zion -6/Proximity Caves -6/Factory -6/Extension (discovered 3 exits: *Fac x2 / *Cet) -6/Cetus (discovered 2 exits: *Fac / [*Arc]) -6/Archives -6/Hub_04(d) -5/Factory -5/Garrison (discovered 3 exits: *Fac x3) -5/Factory -5/DSF -4/Factory (discovered 3 exits: *Res / *Upp x2) -4/Upper Caves -4/Upper Caves -4/Warlord -3/Proximity Caves -3/Research (discovered 3 exits: *Res x2 / *Tes) -3/Testing -2/Research (discovered 2 exits: *Acc / *Qua) -2/Quarantine (discovered 2 exits: *Sec / *Frg) -2/Section 7 -1/Access -1/Command (discovered 1 exit: [*Sur]) History --------- Turn | Location | Event 3 | -11/Scrapyard | Discovered new exit (range 15) 134 | -11/Scrapyard | Entered Materials 205 | -10/Materials | Discovered new exit (range 7) 261 | -10/Materials | Discovered new exit (range 15) 306 | -10/Materials | Build established: Mutant 652 | -10/Materials | Repaired Lgt. Treads? 704 | -10/Materials | Discovered new exit (range 10) 874 | -10/Materials | Core integrity fell below 50% 1182 | -10/Materials | Repaired Lgt. Treads 1378 | -10/Materials | Discovered new exit (range 10) 1645 | -10/Materials | Identified exit to Materials 1645 | -10/Materials | Identified exit to Subcaves 1645 | -10/Materials | Identified exit to Mines 1711 | -10/Materials | Learned Storage trap positions 1767 | -10/Materials | Learned 2 Storage zone layouts 1811 | -10/Materials | Learned Storage garrison access intel 1845 | -10/Materials | Learned 4 Subcaves zone layouts 1907 | -10/Materials | Learned Storage terminal intel 2015 | -10/Materials | Learned location of Mines (-10) 2037 | -10/Materials | Prayed at D.C.S.S. Altar Unit 2080 | -10/Materials | Entered another Materials area 2080 | -9/Materials | Evolved 2 slots: Propulsion x1, Utility x1 2081 | -9/Materials | Identified exit to Materials 2312 | -9/Materials | Discovered new exit (range 5) 2584 | -9/Materials | X0-1V1 announced a LAN party 2638 | -9/Materials | Utility slot count permanently improved by X0-1V1 (+1) 2680 | -9/Materials | Build established: Scavenger-Mutant 2865 | -9/Materials | X0-1V1 activates XOMVISION 3155 | -9/Materials | X0-1V1 mutated your Utility slot to Propulsion slot 3637 | -9/Materials | Discovered new exit (range 15) 3669 | -9/Materials | Identified exit to Mines 3680 | -9/Materials | First assault squad dispatched 4003 | -9/Materials | Repaired Lgt. Treads+? 4065 | -9/Materials | Discovered exit to Materials (range 15) 4131 | -9/Materials | Core integrity restored by X0-1V1 (+116) 4198 | -9/Materials | X0-1V1 sent you to a vault 4349 | -9/Materials | Identified exit to Storage 4352 | -9/Materials | Entered Storage 4354 | -9/Storage | Loaded intel: 22 trap records 4355 | -9/Storage | Loaded intel: 14 terminal locations 4356 | -9/Storage | Loaded intel: 1 garrison access location 4483 | -9/Storage | Heat dissipation permanently improved by X0-1V1 (+30; -150 max core) 4647 | -9/Storage | Assisted by bots powering up and referring to "LRC-V3" 4653 | -9/Storage | Garrison activated, responded to threat 4767 | -9/Storage | Identified exit to Garrison 4767 | -9/Storage | Entered Garrison 4767 | -9/Garrison | Accompanied by 8 allies 4771 | -9/Garrison | Triggered checkpoint 4829 | -9/Garrison | Garrison Relay disabled 5110 | -9/Garrison | X0-1V1 activates XOMVISION 5236 | -9/Garrison | Garrison Relay disabled 5292 | -9/Garrison | Triggered checkpoint 5303 | -9/Garrison | Build established: Commander-Mutant 5311 | -9/Garrison | Triggered checkpoint 5316 | -9/Garrison | Triggered checkpoint 5360 | -9/Garrison | Lost 5 allies 5457 | -9/Garrison | Discovered exit to Materials (range 9) 5471 | -9/Garrison | Triggered checkpoint 5502 | -9/Garrison | Garrison Relay disabled 5504 | -9/Garrison | X0-1V1 revealed exit location to -8/Materials 5506 | -9/Garrison | Lost 4 allies 5609 | -9/Garrison | Garrison Relay disabled 5695 | -9/Garrison | Phase Generator disabled 5751 | -9/Garrison | Build established: Scavenger-Mutant 5832 | -9/Garrison | Core integrity permanently improved by X0-1V1 (+400) 6051 | -9/Garrison | Triggered checkpoint 6056 | -9/Garrison | Garrison Relay disabled 6152 | -9/Garrison | Build established: Commander-Mutant 6377 | -9/Garrison | Triggered checkpoint 6402 | -9/Garrison | Garrison Relay disabled 6636 | -9/Garrison | Discovered exit to Materials (range 4) 6672 | -9/Garrison | Triggered checkpoint 6700 | -9/Garrison | Garrison Relay disabled 6813 | -9/Garrison | X0-1V1 activates XOMVISION 6845 | -9/Garrison | Entered Materials 6845 | -8/Materials | Accompanied by 10 allies 6845 | -8/Materials | Evolved 2 slots: Utility x1, Weapon x1 6940 | -8/Materials | Lost 3 allies 6983 | -8/Materials | X0-1V1 upgraded ally (x6) 6999 | -8/Materials | Garrison activated, responded to threat 7061 | -8/Materials | High security lockdown imminent 7141 | -8/Materials | High security lockdown engaged 7200 | -8/Materials | Discovered new exit (range 7) 7213 | -8/Materials | Entered Factory 7213 | -7/Factory | Evolved 2 slots: Power x1, Utility x1 7369 | -7/Factory | Discovered new exit (range 9) 7388 | -7/Factory | Identified exit to Lower Caves 7390 | -7/Factory | Entered Lower Caves 7396 | -7/Lower Caves | Met a Warlord Commander 7397 | -7/Lower Caves | Learned location of Warlord (-4) 7398 | -7/Lower Caves | Warlord Commander delivered Encrypted Comm Array 7398 | -7/Lower Caves | Found Encrypted Comm Array 7512 | -7/Lower Caves | Build established: Scavenger-Skirmisher 7728 | -7/Lower Caves | Identified exit to Lower Caves 7728 | -7/Lower Caves | X0-1V1 revealed exit location to -7/Lower Caves 8179 | -7/Lower Caves | Entered another Lower Caves area 8203 | -7/Lower Caves | Discovered new exit (range 2) 8203 | -7/Lower Caves | X0-1V1 sent you into danger 8314 | -7/Lower Caves | Spotted B-75 Beast 8328 | -7/Lower Caves | X0-1V1 vaporized surrounding terrain (radius 15) 8416 | -7/Lower Caves | Lost 7 parts (1p3n3w) 8564 | -7/Lower Caves | X0-1V1 mutated your Weapon slot to Power slot 8706 | -7/Lower Caves | Build established: Scavenger-Mutant 9022 | -7/Lower Caves | X0-1V1 vaporized surrounding terrain (radius 23) 9157 | -7/Lower Caves | Discovered new exit (range 16) 9223 | -7/Lower Caves | Entered Zion 9374 | -7/Zion | System corruption cleaned by Quarantine Array 9643 | -7/Zion | Discovered new exit (range 16) 9825 | -7/Zion | Given A8's code to call for help 10431 | -7/Zion | Gained Derelict followers 10606 | -7/Zion | Acquired unknown access codes intercepted by a Zionite 11074 | -7/Zion | Met Imprinter 11420 | -7/Zion | Entered Proximity Caves 11420 | -6/Proximity Caves | Accompanied by 4 allies 11542 | -6/Proximity Caves | System corruption reached 10% 11547 | -6/Proximity Caves | Lost 4 allies 11572 | -6/Proximity Caves | Lost 4 parts (1p1n1u1w) 11615 | -6/Proximity Caves | Attracted the attention of an 0b10 outpost 12059 | -6/Proximity Caves | Identified exit to Factory 12059 | -6/Proximity Caves | X0-1V1 revealed exit location to -6/Factory 12266 | -6/Proximity Caves | Learned Factory stockpile data 12268 | -6/Proximity Caves | Entered Factory 12268 | -6/Factory | Evolved 2 slots: Weapon x2 12590 | -6/Factory | Build established: Scavenger-Tank 12596 | -6/Factory | Discovered new exit (range 6) 12604 | -6/Factory | Entered Extension 12825 | -6/Extension | Identified exit to Factory 12825 | -6/Extension | X0-1V1 revealed exit location to -5/Factory 13318 | -6/Extension | Identified exit to Cetus 13318 | -6/Extension | X0-1V1 revealed exit location to -6/Cetus 13342 | -6/Extension | Rescued a captive Derelict 13343 | -6/Extension | Rescued a captive Derelict 13400 | -6/Extension | X0-1V1 foreshadows a heat wave 13448 | -6/Extension | Rescued a captive Derelict 13448 | -6/Extension | Rescued a captive Derelict 13714 | -6/Extension | Ambient heat levels rising (+10) 13812 | -6/Extension | Lost 3 allies 13832 | -6/Extension | Rescued a captive Derelict 13839 | -6/Extension | X0-1V1 destroyed Energy Cycler 13839 | -6/Extension | Energy Cycler disabled 13883 | -6/Extension | Spotted B-75 Beast 13885 | -6/Extension | Allies destroyed B-75 Beast 13895 | -6/Extension | Spotted B-75 Beast 13917 | -6/Extension | Discovered exit to Factory (range 12) 13940 | -6/Extension | Lost 3 allies 14024 | -6/Extension | Extracted ID and sensor layout for unrecognized location from A7's data core 14029 | -6/Extension | Ambient heat levels rising (+10) 14043 | -6/Extension | Found Prototype Protection 14043 | -6/Extension | Identified Med. Regenerative Plating 14349 | -6/Extension | Build established: Scavenger-Gunner 14356 | -6/Extension | Ambient heat levels falling (-10) 14521 | -6/Extension | Entered Cetus 14521 | -6/Cetus | Accompanied by 9 allies 14557 | -6/Cetus | Spotted Cetus Guard 14558 | -6/Cetus | Spotted Cetus Guard 14559 | -6/Cetus | Allies destroyed Cetus Guard 14561 | -6/Cetus | Spotted Cetus Guard 14561 | -6/Cetus | Spotted Cetus Guard 14567 | -6/Cetus | Allies destroyed Cetus Guard 14570 | -6/Cetus | Destroyed Cetus Guard 14573 | -6/Cetus | Allies destroyed Cetus Guard 14600 | -6/Cetus | Lost 3 allies 14748 | -6/Cetus | Discovered new exit (range 16) 14800 | -6/Cetus | Spotted Cetus Guard 14800 | -6/Cetus | Spotted Cetus Guard 14803 | -6/Cetus | Spotted Cetus Guard 14805 | -6/Cetus | Spotted Cetus Guard 14816 | -6/Cetus | Destroyed Cetus Guard 14816 | -6/Cetus | Allies destroyed Cetus Guard 14822 | -6/Cetus | Allies destroyed Cetus Guard 14825 | -6/Cetus | Destroyed Cetus Guard 14854 | -6/Cetus | Discovered exit to Factory (range 16) 14862 | -6/Cetus | Met Revision 17 14901 | -6/Cetus | Build established: Scavenger-Tank 14908 | -6/Cetus | X0-1V1 activates XOMVISION 14943 | -6/Cetus | Entered Archives 14943 | -6/Archives | Accompanied by 1 ally 14963 | -6/Archives | Met Zhirov 14969 | -6/Archives | Reinforcements dispatched to Archives 14972 | -6/Archives | Discovered new exit (range 16) 14998 | -6/Archives | Entered Hub_04(d) 14998 | -6/Hub_04(d) | Accompanied by 1 ally 15027 | -6/Hub_04(d) | Garrison activated, responded to threat 15139 | -6/Hub_04(d) | Crushed by falling debris 15141 | -6/Hub_04(d) | X0-1V1 sent allied B-90 Cyclops (x1) 15189 | -6/Hub_04(d) | Discovered exit to Factory (range 14) 15256 | -6/Hub_04(d) | Entered Factory 15256 | -5/Factory | Accompanied by 1 ally 15256 | -5/Factory | Evolved 2 slots: Propulsion x1, Utility x1 15453 | -5/Factory | X0-1V1 announced a LAN party 15663 | -5/Factory | X0-1V1 sent hostile Butcher (x1) 15761 | -5/Factory | Garrison activated, responded to threat 15805 | -5/Factory | Identified exit to Garrison 15805 | -5/Factory | Entered Garrison 15835 | -5/Garrison | Triggered checkpoint 15837 | -5/Garrison | System corruption reached 10% 15874 | -5/Garrison | Garrison Relay disabled 15940 | -5/Garrison | Triggered checkpoint 16101 | -5/Garrison | Discovered new exit (range 14) 16199 | -5/Garrison | X0-1V1 downgraded hostiles (x1) 16287 | -5/Garrison | X0-1V1 sent hostile Thug (x3) 16363 | -5/Garrison | Triggered checkpoint 16397 | -5/Garrison | Found embedded Infiltrators 16412 | -5/Garrison | Garrison Relay disabled 16479 | -5/Garrison | Triggered checkpoint 16540 | -5/Garrison | Discovered new exit (range 10) 16591 | -5/Garrison | X0-1V1 sent allied Fireman (x3) 16628 | -5/Garrison | Garrison Relay disabled 16678 | -5/Garrison | Heavy support dispatched to Factory 16758 | -5/Garrison | Triggered checkpoint 16783 | -5/Garrison | Heavy support dispatched to Factory 16827 | -5/Garrison | Attempted to access garrison exit controls, blocked by remote lockdown 16830 | -5/Garrison | Lost 4 allies 16969 | -5/Garrison | X0-1V1 sent you into danger 17049 | -5/Garrison | Found Gamma Bomb Array 17051 | -5/Garrison | Found Gamma Bomb Array 17063 | -5/Garrison | Triggered checkpoint 17089 | -5/Garrison | Triggered checkpoint 17127 | -5/Garrison | Garrison Relay disabled 17149 | -5/Garrison | Identified exit to Factory 17149 | -5/Garrison | X0-1V1 revealed exit location to -5/Factory 17255 | -5/Garrison | H-XX Assembler disabled 17479 | -5/Garrison | Triggered checkpoint 17557 | -5/Garrison | Attempted to access garrison exit controls, blocked by remote lockdown 17636 | -5/Garrison | Garrison Relay disabled 18013 | -5/Garrison | Spotted Executioner 18013 | -5/Garrison | Spotted Executioner 18092 | -5/Garrison | Destroyed Executioner 18104 | -5/Garrison | Destroyed Executioner 18117 | -5/Garrison | Found Prototype Processor 18117 | -5/Garrison | Identified Exp. Core Analyzer 18163 | -5/Garrison | Found Exp. Core Analyzer 18184 | -5/Garrison | Found Exp. Core Analyzer 18185 | -5/Garrison | X0-1V1 sent hostile G-50 Soldier (x4) 18192 | -5/Garrison | Found Prototype Processor 18438 | -5/Garrison | X0-1V1 mutated your Propulsion slot to Weapon slot 18661 | -5/Garrison | Entered Factory 18707 | -5/Factory | Identified exit to DSF 18709 | -5/Factory | Entered DSF 18762 | -5/DSF | Additional patrols routed to DSF 18826 | -5/DSF | Discovered new exit (range 14) 18991 | -5/DSF | Identified Exp. Targeting Computer 18992 | -5/DSF | Entered Factory 18992 | -4/Factory | Evolved 2 slots: Propulsion x2 19093 | -4/Factory | X0-1V1 upgraded hostiles (x1) 19096 | -4/Factory | Garrison activated, responded to threat 19312 | -4/Factory | System corruption reached 10% 19373 | -4/Factory | X0-1V1 sent someone to keep an eye on you 19445 | -4/Factory | X0-1V1 redirected Transport squads to designated parking area 19524 | -4/Factory | X0-1V1 downgraded hostiles (x3) 19542 | -4/Factory | Lost 3 parts (1p2u) 19612 | -4/Factory | System corruption reached 30% 19641 | -4/Factory | Destroyed 14 combat bots 19797 | -4/Factory | Discovered new exit (range 12) 19801 | -4/Factory | Destroyed 8 combat bots 19847 | -4/Factory | Garrison activated, responded to threat 19949 | -4/Factory | X0-1V1 whisked you away to safety 19992 | -4/Factory | First assault squad dispatched 20033 | -4/Factory | Crushed by falling debris 20609 | -4/Factory | Destroyed 16 combat bots 20614 | -4/Factory | Identified exit to Research 20755 | -4/Factory | Identified exit to Upper Caves 20824 | -4/Factory | X0-1V1 activates XOMVISION 20831 | -4/Factory | Entered Upper Caves 20849 | -4/Upper Caves | Learned 4 Research zone layouts 21454 | -4/Upper Caves | X0-1V1 activates XOMVISION 21608 | -4/Upper Caves | Attracted the attention of an 0b10 checkpoint 21660 | -4/Upper Caves | Destroyed 9 combat bots 21719 | -4/Upper Caves | Discovered new exit (range 17) 21747 | -4/Upper Caves | Entered another Upper Caves area 21764 | -4/Upper Caves | Learned location of Testing (-3) 21905 | -4/Upper Caves | X0-1V1 activates XOMVISION 22149 | -4/Upper Caves | Discovered new exit (range 13) 22363 | -4/Upper Caves | Entered Warlord 22427 | -4/Warlord | System corruption cleaned by Quarantine Array 22452 | -4/Warlord | System corruption cleaned by Quarantine Array 22774 | -4/Warlord | Found Prototype Device 22774 | -4/Warlord | Identified Exp. Focal Shield 22792 | -4/Warlord | Found Prototype Hackware 22811 | -4/Warlord | Found Prototype Reactor 22811 | -4/Warlord | Identified Vortex Chain Reactor 22939 | -4/Warlord | Warlord's base attacked by MAIN.C 22959 | -4/Warlord | Met EX-DEC 22964 | -4/Warlord | Found Prototype Energy Cannon 22994 | -4/Warlord | Found Prototype Energy Gun 22994 | -4/Warlord | Identified Vortex Rifle 23289 | -4/Warlord | Warlord forces counterattacked 23314 | -4/Warlord | Met Warlord 23461 | -4/Warlord | Spotted Executioner 23490 | -4/Warlord | Destroyed Executioner 23526 | -4/Warlord | Spotted Executioner 23540 | -4/Warlord | Destroyed Executioner 23614 | -4/Warlord | Warlord base infiltrated, sounded retreat 23620 | -4/Warlord | Spotted Executioner 23621 | -4/Warlord | Spotted Executioner 23627 | -4/Warlord | Destroyed Executioner 23657 | -4/Warlord | Spotted Striker 23661 | -4/Warlord | Destroyed Striker 23706 | -4/Warlord | Spotted Executioner 23711 | -4/Warlord | X0-1V1 sent allied G-50 Soldier (x2) 23720 | -4/Warlord | Destroyed 28 combat bots 23743 | -4/Warlord | Discovered new exit (range 12) 23760 | -4/Warlord | Entered Proximity Caves 23760 | -3/Proximity Caves | Accompanied by 2 allies 23920 | -3/Proximity Caves | X0-1V1 revealed exit location to -3/Research 24227 | -3/Proximity Caves | Entered Research 24227 | -3/Research | Evolved 2 slots: Utility x1, Weapon x1 24232 | -3/Research | Identified BFG-9k Vortex Edition 24254 | -3/Research | X0-1V1 released a cloud of subatomizers 24320 | -3/Research | Identified System Mapper 24337 | -3/Research | Garrison activated, responded to threat 24427 | -3/Research | Revision forces began assault on 0b10 24437 | -3/Research | Identified exit to Research 24437 | -3/Research | X0-1V1 revealed exit location to -2/Research 24448 | -3/Research | Found Prototype Device 24448 | -3/Research | Identified Exp. Thermal Shield 24469 | -3/Research | Met up with Revision 17++ 24511 | -3/Research | Build established: Scavenger-Executioner 24927 | -3/Research | Research terminal network offline 25083 | -3/Research | Discovered exit to Research (range 14) 25088 | -3/Research | Spotted Striker 25282 | -3/Research | Discovered new exit (range 16) 25305 | -3/Research | Identified exit to Testing 25316 | -3/Research | Entered Testing 25387 | -3/Testing | Scanned by Researcher 25594 | -3/Testing | X0-1V1 mutated your Weapon slot to Propulsion slot 25596 | -3/Testing | Found Prototype Device 25596 | -3/Testing | Identified Exp. Thermal Defense Suite 25603 | -3/Testing | Found Prototype Device 25603 | -3/Testing | Identified Imp. Particle Accelerator 25675 | -3/Testing | Spotted Striker 25675 | -3/Testing | Spotted Striker 25696 | -3/Testing | X0-1V1 revealed exit location to -2/Research 25718 | -3/Testing | System corruption reached 10% 25787 | -3/Testing | Weapon slot count temporarily expanded by X0-1V1 (+2) 25794 | -3/Testing | X0-1V1 sent allied Savage (x3) 25888 | -3/Testing | X0-1V1 activates XOMVISION 25892 | -3/Testing | Found Prototype Energy Cannon 25892 | -3/Testing | Identified Disintegrator 26006 | -3/Testing | Central database locked down 26020 | -3/Testing | Lost 3 allies 26365 | -3/Testing | Found Prototype Processor 26365 | -3/Testing | Identified Exp. Terrain Scan Processor 26371 | -3/Testing | Found Exp. Terrain Scan Processor 26393 | -3/Testing | Rewired PX-CBWMHV5QEO 26684 | -3/Testing | Found Prototype Energy Cannon 26705 | -3/Testing | Build established: Hacker-Tank 26765 | -3/Testing | X0-1V1 sent you to a vault 26953 | -3/Testing | Spotted Alpha 7 26959 | -3/Testing | Allies destroyed Alpha 7 26979 | -3/Testing | System corruption reached 30% 26986 | -3/Testing | Found Corrupted Prototype Ballistic Gun 27012 | -3/Testing | Rewired SU-82Z(K) 27015 | -3/Testing | Rewired XX-92F(K) 27134 | -3/Testing | Found System Mapper 27196 | -3/Testing | Found Prototype Energy Cannon 27196 | -3/Testing | Identified Cld. Nova Cannon 27274 | -3/Testing | X0-1V1 enhanced Transport squad support 27286 | -3/Testing | Identified Multirail 27288 | -3/Testing | Entered Research 27288 | -2/Research | Accompanied by 3 allies 27288 | -2/Research | Warlord forces began assault on 0b10 27288 | -2/Research | Evolved 2 slots: Utility x1, Weapon x1 27313 | -2/Research | Distinguished unit "Department No. 42" dispatched to help 27313 | -2/Research | Distinguished unit "Gunslingers" dispatched to help 27393 | -2/Research | Lost 3 allies 27398 | -2/Research | Research machine network offline 27398 | -2/Research | X0-1V1 rewrote Electro 8d IFF filter 27450 | -2/Research | Spotted B-90 Cyclops 27455 | -2/Research | Destroyed B-90 Cyclops 27485 | -2/Research | Lost 4 allies 27596 | -2/Research | Build established: Scavenger-Executioner 27614 | -2/Research | Lost 3 allies 27799 | -2/Research | Borebot progress halted 27968 | -2/Research | Found Gamma Bomb Array+ 28039 | -2/Research | Spotted Executioner 28040 | -2/Research | Spotted Striker 28055 | -2/Research | Destroyed Striker 28058 | -2/Research | Destroyed Executioner 28072 | -2/Research | X0-1V1 added 0b10 threat records associated with you (considerable) 28083 | -2/Research | Lost 5 allies 28109 | -2/Research | X0-1V1 sent you to a vault 28114 | -2/Research | Found Prototype Protection 28114 | -2/Research | Identified Centrium Heavy Armor Plating 28130 | -2/Research | Found Prototype Device 28130 | -2/Research | Identified Imp. Particle Accelerator 28135 | -2/Research | X0-1V1 announced a LAN party 28193 | -2/Research | Spotted Striker 28201 | -2/Research | Destroyed Striker 28249 | -2/Research | X0-1V1 activates XOMVISION 28546 | -2/Research | Found Exp. Core Analyzer 28795 | -2/Research | Given Cave Seal Controls access code 28973 | -2/Research | Borebot progress halted 29016 | -2/Research | Met up with Warlord 29067 | -2/Research | Spotted Striker 29156 | -2/Research | Discovered new exit (range 9) 29332 | -2/Research | Discovered new exit (range 5) 29340 | -2/Research | Entered Quarantine 29442 | -2/Quarantine | X0-1V1 sent you to a vault 29447 | -2/Quarantine | Found Alien Artifact 29461 | -2/Quarantine | Found Prototype Device 29461 | -2/Quarantine | Identified Exp. Terrain Scanner 29471 | -2/Quarantine | Found Prototype Device 29471 | -2/Quarantine | Identified System Purifier 29479 | -2/Quarantine | Found Prototype Device 29479 | -2/Quarantine | Identified Exp. Shield Generator 29579 | -2/Quarantine | Garrison activated, responded to threat 29784 | -2/Quarantine | Cryocooling Duct disabled 29787 | -2/Quarantine | Cryocooling Duct disabled 29790 | -2/Quarantine | X0-1V1 opened Sealed Heavy Doors 29791 | -2/Quarantine | Met incapacitated Sigix Warrior 29791 | -2/Quarantine | Lockdown squad dispatched 29799 | -2/Quarantine | Ambient heat levels rising (+20) 29799 | -2/Quarantine | Non-combat units ordered to evacuate 29802 | -2/Quarantine | Ambient heat levels rising (+20) 29802 | -2/Quarantine | Combat units ordered to evacuate 29864 | -2/Quarantine | Found Prototype Device 29865 | -2/Quarantine | Identified Exp. Shock Absorption System 29893 | -2/Quarantine | Found Alien Artifact 29902 | -2/Quarantine | Quarantine Guard activated 29962 | -2/Quarantine | Spotted Quarantine Guard 29982 | -2/Quarantine | Spotted Quarantine Guard 29983 | -2/Quarantine | Spotted Quarantine Guard 29986 | -2/Quarantine | Spotted Quarantine Guard 29988 | -2/Quarantine | Destroyed Quarantine Guard 29988 | -2/Quarantine | Spotted Quarantine Guard 29990 | -2/Quarantine | Spotted Quarantine Guard 29990 | -2/Quarantine | Spotted Quarantine Guard 29993 | -2/Quarantine | Destroyed Quarantine Guard 29994 | -2/Quarantine | X0-1V1 sent allied Thug (x3) 29999 | -2/Quarantine | Destroyed Quarantine Guard 30003 | -2/Quarantine | Destroyed Quarantine Guard 30008 | -2/Quarantine | Destroyed Quarantine Guard 30018 | -2/Quarantine | Spotted Quarantine Guard 30025 | -2/Quarantine | Destroyed Quarantine Guard 30032 | -2/Quarantine | Destroyed Quarantine Guard 30053 | -2/Quarantine | Destroyed 7 combat bots 30065 | -2/Quarantine | Lost 5 allies 30093 | -2/Quarantine | Discovered new exit (range 14) 30130 | -2/Quarantine | Found Prototype Processor 30130 | -2/Quarantine | Identified Exp. Targeting Computer 30141 | -2/Quarantine | Found Exp. Targeting Computer 30288 | -2/Quarantine | Found Alien Artifact 30381 | -2/Quarantine | X0-1V1 added 0b10 threat records associated with you (considerable) 30517 | -2/Quarantine | Identified Core Reset Matrix 30645 | -2/Quarantine | X0-1V1 activates XOMVISION 30702 | -2/Quarantine | Identified Terrabomb 31077 | -2/Quarantine | Found Alien Impact Weapon 31155 | -2/Quarantine | Identified Core Stripper 31198 | -2/Quarantine | Spotted Fortress 31216 | -2/Quarantine | Destroyed Fortress 31225 | -2/Quarantine | Found Prototype Device 31225 | -2/Quarantine | Identified Exp. EM Shield 31240 | -2/Quarantine | Found Prototype Device 31240 | -2/Quarantine | Identified Thermal Barrier 31246 | -2/Quarantine | Found Prototype Device 31246 | -2/Quarantine | Identified Exp. Force Field 31334 | -2/Quarantine | X0-1V1 activates XOMVISION 31583 | -2/Quarantine | Found Prototype Hackware 31583 | -2/Quarantine | Identified Exp. Hacking Suite 31649 | -2/Quarantine | Identified exit to Protoforge 31649 | -2/Quarantine | X0-1V1 revealed exit location to -2/Protoforge 31731 | -2/Quarantine | Found Vortex Chain Reactor 31783 | -2/Quarantine | Repaired Centrium Heavy Armor Plating 31882 | -2/Quarantine | Identified exit to Section 7 31882 | -2/Quarantine | X0-1V1 revealed exit location to -2/Section 7 32119 | -2/Quarantine | Identified Subatomic Replicator 32119 | -2/Quarantine | Used Core Reset Matrix 32123 | -2/Quarantine | Sensed 4 artifacts in vicinity 32281 | -2/Quarantine | Found Unknown Protection 32281 | -2/Quarantine | Identified Hvy. Insulated Plating 32461 | -2/Quarantine | Discovered exit to Section 7 (range 5) 32461 | -2/Quarantine | Discovered exit to Protoforge (range 6) 32467 | -2/Quarantine | Entered Section 7 32468 | -2/Section 7 | Detected hypermatrix surge 32468 | -2/Section 7 | Sensed 21 artifacts in vicinity 32483 | -2/Section 7 | Spotted B-90 Cyclops 32522 | -2/Section 7 | Destroyed B-90 Cyclops 32591 | -2/Section 7 | Identified exit to Access 32591 | -2/Section 7 | X0-1V1 revealed exit location to -1/Access 32593 | -2/Section 7 | Destroyed 8 combat bots 32608 | -2/Section 7 | Found Integrity Redistributor 32771 | -2/Section 7 | Found Microwarp Drive 32804 | -2/Section 7 | X0-1V1 sent you to a vault 32919 | -2/Section 7 | Spotted Executioner 32920 | -2/Section 7 | Spotted Executioner 32953 | -2/Section 7 | Destroyed Executioner 32962 | -2/Section 7 | Destroyed Executioner 32967 | -2/Section 7 | First assault squad dispatched 33031 | -2/Section 7 | Found Hpw. Transdimensional Reconstructor 33099 | -2/Section 7 | Spotted B-99 Colossus 33150 | -2/Section 7 | Found Integrated Reactor 33150 | -2/Section 7 | Installed Integrated Reactor, increased core energy generation (+10) 33153 | -2/Section 7 | Found Integrated Reactor 33153 | -2/Section 7 | Installed Integrated Reactor, increased core energy generation (+10) 33156 | -2/Section 7 | Found Integrated Reactor 33156 | -2/Section 7 | Installed Integrated Reactor, increased core energy generation (+10) 33213 | -2/Section 7 | Found LRC Insulator 33213 | -2/Section 7 | Installed LRC Insulator, 1 resistance modified: EM +25% 33289 | -2/Section 7 | Found Integrated Dissipator 33289 | -2/Section 7 | Installed Integrated Dissipator, increased core heat dissipation (+20) 33386 | -2/Section 7 | Found Corrupted Prototype Launcher 33418 | -2/Section 7 | Identified Imp. Potential Cannon 33508 | -2/Section 7 | Build established: Alien-Executioner 33626 | -2/Section 7 | Spotted Alpha 7 33627 | -2/Section 7 | Spotted Alpha 7 33640 | -2/Section 7 | Destroyed Alpha 7 33646 | -2/Section 7 | Destroyed Alpha 7 33686 | -2/Section 7 | Destroyed 12 combat bots 33703 | -2/Section 7 | Found Multirail 33735 | -2/Section 7 | X0-1V1 downgraded hostiles (x4) 33786 | -2/Section 7 | Destroyed 9 combat bots 33865 | -2/Section 7 | Found Integrated Dissipator 33865 | -2/Section 7 | Installed Integrated Dissipator, increased core heat dissipation (+20) 33892 | -2/Section 7 | Spotted S7 Guard 33919 | -2/Section 7 | Destroyed S7 Guard 33945 | -2/Section 7 | Found Integrated Thermoelectric Network 33945 | -2/Section 7 | Installed Integrated Thermoelectric Network, gained heat-energy exchange potential 33968 | -2/Section 7 | Spotted S7 Guard 33985 | -2/Section 7 | Destroyed S7 Guard 34049 | -2/Section 7 | Found Core Membrane 34049 | -2/Section 7 | Installed Core Membrane, gained immunity to corruption 34100 | -2/Section 7 | System corruption reached 10% 34142 | -2/Section 7 | Identified Enh. Gamma Bomb Array 34185 | -2/Section 7 | Spotted S7 Guard 34244 | -2/Section 7 | Scanned by Researcher 34245 | -2/Section 7 | Intercept squad dispatched 34253 | -2/Section 7 | Destroyed S7 Guard 34260 | -2/Section 7 | Spotted Tracker 34262 | -2/Section 7 | Spotted Tracker 34266 | -2/Section 7 | Destroyed Tracker 34270 | -2/Section 7 | Destroyed Tracker 34275 | -2/Section 7 | Used Subatomic Replicator to replicate Integrity Redistributor 34279 | -2/Section 7 | Used Integrity Redistributor, redistributed integrity from core (-489) 34280 | -2/Section 7 | Spotted Combat Programmer 34282 | -2/Section 7 | Spotted Combat Programmer 34290 | -2/Section 7 | Destroyed Combat Programmer 34299 | -2/Section 7 | Destroyed Combat Programmer 34320 | -2/Section 7 | High security lockdown imminent 34348 | -2/Section 7 | Found Core Regenerator 34362 | -2/Section 7 | Destroyed 17 combat bots 34390 | -2/Section 7 | Core integrity fell below 50% 34400 | -2/Section 7 | High security lockdown engaged 34400 | -2/Section 7 | Entered Access 34400 | -1/Access | Evolved 2 slots: Utility x1, Weapon x1 34501 | -1/Access | X0-1V1 redirected Transport squads to designated parking area 34636 | -1/Access | X0-1V1 turns hostiles against one another 34680 | -1/Access | Garrison activated, responded to threat 34818 | -1/Access | Garrison activated, responded to threat 34916 | -1/Access | Identified exit to Command 35009 | -1/Access | Intercept squad dispatched 35036 | -1/Access | Spotted Tracker 35036 | -1/Access | Spotted Tracker 35039 | -1/Access | Destroyed Tracker 35049 | -1/Access | Destroyed Tracker 35071 | -1/Access | Spotted Combat Programmer 35075 | -1/Access | Destroyed Combat Programmer 35085 | -1/Access | Spotted Combat Programmer 35089 | -1/Access | Destroyed Combat Programmer 35132 | -1/Access | Found Prototype Device 35132 | -1/Access | Identified Exp. Phase Shifter 35150 | -1/Access | First assault squad dispatched 35298 | -1/Access | Entered Command 35376 | -1/Command | Destroyed 7 combat bots 35501 | -1/Command | Spotted B-99 Colossus 35519 | -1/Command | Spotted B-99 Colossus 35519 | -1/Command | Spotted Executioner 35519 | -1/Command | Spotted Executioner 35519 | -1/Command | Spotted Striker 35519 | -1/Command | Spotted Alpha 7 35519 | -1/Command | Spotted Executioner 35519 | -1/Command | Spotted Executioner 35519 | -1/Command | Spotted Striker 35519 | -1/Command | Spotted Alpha 7 35519 | -1/Command | Spotted B-99 Colossus 35519 | -1/Command | X0-1V1 sent you into danger 35523 | -1/Command | Discovered new exit (range 11) 35548 | -1/Command | First assault squad dispatched 35550 | -1/Command | Destroyed Striker 35554 | -1/Command | Destroyed Striker 35594 | -1/Command | Spotted M Guard 35599 | -1/Command | Spotted M Guard 35599 | -1/Command | Spotted Combat Programmer 35599 | -1/Command | Spotted Combat Programmer 35611 | -1/Command | Destroyed 8 combat bots 35650 | -1/Command | Used Integrity Redistributor, redistributed integrity from core (-579) 35651 | -1/Command | Core integrity fell below 50% 35651 | -1/Command | Used Core Regenerator, restored core integrity (+462) 35652 | -1/Command | Destroyed Combat Programmer 35681 | -1/Command | Lost 3 parts (2u1w) 35719 | -1/Command | 0b10 Conduit disabled 35720 | -1/Command | Met MAIN.C 35738 | -1/Command | X0-1V1 downgraded hostiles (x3) 35753 | -1/Command | Destroyed MAIN.C Shell 35755 | -1/Command | MAIN.C activated Command garrisons 35779 | -1/Command | Emitted hypermatrix ping 35784 | -1/Command | Assembled emerged from beneath the floor 35803 | -1/Command | Core integrity fell below 20% 35809 | -1/Command | Lost 9 parts (4p3n2u) 35821 | -1/Command | Released all parts (6) 35830 | -1/Command | X0-1V1 rescued you from certain death 35857 | -1/Command | Destroyed by G-73 Enforcer with Phase Gun Last Messages --------------- X0-1V1 takes a morbid interest in your temporary survival. Core integrity partially restored (758). The surroundings shift and blur. Knocked back. Dropped Imp. Potential Cannon. Acquired Imp. Potential Cannon. Knocked back. C-45 Heavy ARC bursts open, deploying its payload. P-80 Master unfolds itself. Operations Mainframe disabled. Penetrated by Slug. Slug penetrates Wall. The swirling icy cloud dissipates. Penetrated by Slug. Slug penetrates G-73 Enforcer. Penetrated by Slug. Slug penetrates Wall. X0-1V1 giggles madly! Map ----- +----------------------------------------------------+ | ????????????# " ??? #??????????# #???????? | | ????????????# "